{"text_format":"1","workbook":"xlsx","n_sheets":5,"sheets":["Календарь","Пинарик","События","Нормы раб.времени","Праздники"],"not_rendered":{"charts":0,"images":1,"macros":1,"external_links":0,"defined_names":1,"comments":1,"pivot_tables":0},"unopened":[],"bounds":{"document_bytes":16777216,"sheet_cells":100000,"rows_first":2000,"rows_last":500,"rows_between":2000,"halvings":0,"cell_chars":16384,"cell_head_chars":4096},"cells_cut":0,"cells_raw":0,"read":"whole","date_system":"1900"}

{"sheet":"Календарь","index":0,"n_rows":44,"n_cols":39,"rows_kept":44,"cut":false,"hidden":false,"merged":[[0,9,0,15],[24,1,25,7],[24,9,25,15],[24,17,25,23],[35,1,36,7],[35,9,36,15],[35,17,36,23],[2,1,3,7],[2,9,3,15],[2,17,3,23],[13,1,14,7],[13,9,14,15],[13,17,14,23]]}
[null,null,null,null,null,null,null,null,null,2025,null,null,null,null,null,null,null,null,null,null,null,null,null,null,{"$f":"\"Сегодня \"&TEXT(TODAY(),\"ДД МММ ГГГГ\")&\" \"&IFERROR(VLOOKUP(TODAY(),Праздники!A1:B134,2,0),\" \")","v":"Сегодня 31 дек 2024  "},null,null,null,{"$f":"\"Мероприятия на \"&TEXT(AD1,\"ДДД\")","v":"Мероприятия на Чт"},"2025-01-02",null,null,null,"Настройки"]
["I квартал"]
[null,{"$f":"DATE(J1,1,1)","v":"2025-01-01"},null,null,null,null,null,null,null,{"$f":"DATE(J1,2,1)","v":"2025-02-01"},null,null,null,null,null,null,null,{"$f":"DATE(J1,3,1)","v":"2025-03-01"},null,null,null,null,null,null,null,null,null,0.999999999999998,null,null,null,null,null,{"$f":"IF($AM$7,_xlfn.ISOWEEKNUM(MAX(AH4:AH10)),\"\")","v":52}]
[null,null,null,null,null,null,null,null,null,null,null,null,null,null,null,null,null,null,null,null,null,null,null,null,null,null,null,"01:00:00"]
[null,"пн","вт","ср","чт","пт","сб","вс",null,"пн","вт","ср","чт","пт","сб","вс",null,"пн","вт","ср","чт","пт","сб","вс",null,null,null,"02:00:00"]
[{"$f":"IF($AM$7,_xlfn.ISOWEEKNUM(MAX(B6:H6)),\"\")","v":1},{"$f":"IF(MONTH(DATE(YEAR(B3),MONTH(B3),1))\n<>MONTH(DATE(YEAR(B3),MONTH(B3),1)-\n(WEEKDAY(DATE(YEAR(B3),MONTH(B3),1),2)-1)\n+{0;1;2;3;4;5}*7+{1,2,3,4,5,6,7}-1),\" \",\nDATE(YEAR(B3),MONTH(B3),1)-\n(WEEKDAY(DATE(YEAR(B3),MONTH(B3),1),2)-1)\n+{0;1;2;3;4;5}*7+{1,2,3,4,5,6,7}-1)","v":" "}," ","2025-01-01","2025-01-02","2025-01-03","2025-01-04","2025-01-05",{"$f":"IF($AM$7,_xlfn.ISOWEEKNUM(MAX(J6:P6)),\"\")","v":5},{"$f":"IF(MONTH(DATE(YEAR(J3),MONTH(J3),1))\n<>MONTH(DATE(YEAR(J3),MONTH(J3),1)-\n(WEEKDAY(DATE(YEAR(J3),MONTH(J3),1),2)-1)\n+{0;1;2;3;4;5}*7+{1,2,3,4,5,6,7}-1),\" \",\nDATE(YEAR(J3),MONTH(J3),1)-\n(WEEKDAY(DATE(YEAR(J3),MONTH(J3),1),2)-1)\n+{0;1;2;3;4;5}*7+{1,2,3,4,5,6,7}-1)","v":" "}," "," "," "," ","2025-02-01","2025-02-02",{"$f":"IF($AM$7,_xlfn.ISOWEEKNUM(MAX(R6:X6)),\"\")","v":9},{"$f":"IF(MONTH(DATE(YEAR(R3),MONTH(R3),1))\n<>MONTH(DATE(YEAR(R3),MONTH(R3),1)-\n(WEEKDAY(DATE(YEAR(R3),MONTH(R3),1),2)-1)\n+{0;1;2;3;4;5}*7+{1,2,3,4,5,6,7}-1),\" \",\nDATE(YEAR(R3),MONTH(R3),1)-\n(WEEKDAY(DATE(YEAR(R3),MONTH(R3),1),2)-1)\n+{0;1;2;3;4;5}*7+{1,2,3,4,5,6,7}-1)","v":" "}," "," "," "," ","2025-03-01","2025-03-02",null,null,null,"03:00:00"]
[{"$f":"IF($AM$7,_xlfn.ISOWEEKNUM(MAX(B7:H7)),\"\")","v":2},"2025-01-06","2025-01-07","2025-01-08","2025-01-09","2025-01-10","2025-01-11","2025-01-12",{"$f":"IF($AM$7,_xlfn.ISOWEEKNUM(MAX(J7:P7)),\"\")","v":6},"2025-02-03","2025-02-04","2025-02-05","2025-02-06","2025-02-07","2025-02-08","2025-02-09",{"$f":"IF($AM$7,_xlfn.ISOWEEKNUM(MAX(R7:X7)),\"\")","v":10},"2025-03-03","2025-03-04","2025-03-05","2025-03-06","2025-03-07","2025-03-08","2025-03-09",null,null,null,"04:00:00",null,null,null,null,null,null,null,null,null,null,true]
[3,"2025-01-13","2025-01-14","2025-01-15","2025-01-16","2025-01-17","2025-01-18","2025-01-19",7,"2025-02-10","2025-02-11","2025-02-12","2025-02-13","2025-02-14","2025-02-15","2025-02-16",11,"2025-03-10","2025-03-11","2025-03-12","2025-03-13","2025-03-14","2025-03-15","2025-03-16",null,null,null,"05:00:00"]
[4,"2025-01-20","2025-01-21","2025-01-22","2025-01-23","2025-01-24","2025-01-25","2025-01-26",8,"2025-02-17","2025-02-18","2025-02-19","2025-02-20","2025-02-21","2025-02-22","2025-02-23",12,"2025-03-17","2025-03-18","2025-03-19","2025-03-20","2025-03-21","2025-03-22","2025-03-23",null,null,null,"06:00:00"]
[5,"2025-01-27","2025-01-28","2025-01-29","2025-01-30","2025-01-31"," "," ",9,"2025-02-24","2025-02-25","2025-02-26","2025-02-27","2025-02-28"," "," ",13,"2025-03-24","2025-03-25","2025-03-26","2025-03-27","2025-03-28","2025-03-29","2025-03-30",null,null,null,"07:00:00"]
[null," "," "," "," "," "," "," ",null," "," "," "," "," "," "," ",14,"2025-03-31"," "," "," "," "," "," ",null,null,null,"08:00:00"]
[null,null,null,null,null,null,null,null,null,null,null,null,null,null,null,null,null,null,null,null,null,null,null,null,null,null,null,"09:00:00","Доесть оливье"]
["II квартал",null,null,null,null,null,null,null,null,null,null,null,null,null,null,null,null,null,null,null,null,null,null,null,null,null,null,"10:00:00"]
[null,{"$f":"DATE(J1,4,1)","v":"2025-04-01"},null,null,null,null,null,null,null,{"$f":"DATE(J1,5,1)","v":"2025-05-01"},null,null,null,null,null,null,null,{"$f":"DATE(J1,6,1)","v":"2025-06-01"},null,null,null,null,null,null,null,null,null,"11:00:00"]
[null,null,null,null,null,null,null,null,null,null,null,null,null,null,null,null,null,null,null,null,null,null,null,null,null,null,null,"12:00:00","Погулять с ребенком"]
[null,"пн","вт","ср","чт","пт","сб","вс",null,"пн","вт","ср","чт","пт","сб","вс",null,"пн","вт","ср","чт","пт","сб","вс",null,null,null,"13:00:00"]
[{"$f":"IF($AM$7,_xlfn.ISOWEEKNUM(MAX(B17:H17)),\"\")","v":14},{"$f":"IF(MONTH(DATE(YEAR(B14),MONTH(B14),1))\n<>MONTH(DATE(YEAR(B14),MONTH(B14),1)-\n(WEEKDAY(DATE(YEAR(B14),MONTH(B14),1),2)-1)\n+{0;1;2;3;4;5}*7+{1,2,3,4,5,6,7}-1),\" \",\nDATE(YEAR(B14),MONTH(B14),1)-\n(WEEKDAY(DATE(YEAR(B14),MONTH(B14),1),2)-1)\n+{0;1;2;3;4;5}*7+{1,2,3,4,5,6,7}-1)","v":" "},"2025-04-01","2025-04-02","2025-04-03","2025-04-04","2025-04-05","2025-04-06",{"$f":"IF($AM$7,_xlfn.ISOWEEKNUM(MAX(J17:P17)),\"\")","v":18},{"$f":"IF(MONTH(DATE(YEAR(J14),MONTH(J14),1))\n<>MONTH(DATE(YEAR(J14),MONTH(J14),1)-\n(WEEKDAY(DATE(YEAR(J14),MONTH(J14),1),2)-1)\n+{0;1;2;3;4;5}*7+{1,2,3,4,5,6,7}-1),\" \",\nDATE(YEAR(J14),MONTH(J14),1)-\n(WEEKDAY(DATE(YEAR(J14),MONTH(J14),1),2)-1)\n+{0;1;2;3;4;5}*7+{1,2,3,4,5,6,7}-1)","v":" "}," "," ","2025-05-01","2025-05-02","2025-05-03","2025-05-04",{"$f":"IF($AM$7,_xlfn.ISOWEEKNUM(MAX(R17:X17)),\"\")","v":22},{"$f":"IF(MONTH(DATE(YEAR(R14),MONTH(R14),1))\n<>MONTH(DATE(YEAR(R14),MONTH(R14),1)-\n(WEEKDAY(DATE(YEAR(R14),MONTH(R14),1),2)-1)\n+{0;1;2;3;4;5}*7+{1,2,3,4,5,6,7}-1),\" \",\nDATE(YEAR(R14),MONTH(R14),1)-\n(WEEKDAY(DATE(YEAR(R14),MONTH(R14),1),2)-1)\n+{0;1;2;3;4;5}*7+{1,2,3,4,5,6,7}-1)","v":" "}," "," "," "," "," ","2025-06-01",null,null,null,"14:00:00"]
[{"$f":"IF($AM$7,_xlfn.ISOWEEKNUM(MAX(B18:H18)),\"\")","v":15},"2025-04-07","2025-04-08","2025-04-09","2025-04-10","2025-04-11","2025-04-12","2025-04-13",{"$f":"IF($AM$7,_xlfn.ISOWEEKNUM(MAX(J18:P18)),\"\")","v":19},"2025-05-05","2025-05-06","2025-05-07","2025-05-08","2025-05-09","2025-05-10","2025-05-11",{"$f":"IF($AM$7,_xlfn.ISOWEEKNUM(MAX(R18:X18)),\"\")","v":23},"2025-06-02","2025-06-03","2025-06-04","2025-06-05","2025-06-06","2025-06-07","2025-06-08",null,null,null,"15:00:00"]
[16,"2025-04-14","2025-04-15","2025-04-16","2025-04-17","2025-04-18","2025-04-19","2025-04-20",20,"2025-05-12","2025-05-13","2025-05-14","2025-05-15","2025-05-16","2025-05-17","2025-05-18",24,"2025-06-09","2025-06-10","2025-06-11","2025-06-12","2025-06-13","2025-06-14","2025-06-15",null,null,null,"16:00:00","Написать план на год"]
[17,"2025-04-21","2025-04-22","2025-04-23","2025-04-24","2025-04-25","2025-04-26","2025-04-27",21,"2025-05-19","2025-05-20","2025-05-21","2025-05-22","2025-05-23","2025-05-24","2025-05-25",25,"2025-06-16","2025-06-17","2025-06-18","2025-06-19","2025-06-20","2025-06-21","2025-06-22",null,null,null,"17:00:00"]
[18,"2025-04-28","2025-04-29","2025-04-30"," "," "," "," ",22,"2025-05-26","2025-05-27","2025-05-28","2025-05-29","2025-05-30","2025-05-31"," ",26,"2025-06-23","2025-06-24","2025-06-25","2025-06-26","2025-06-27","2025-06-28","2025-06-29",null,null,null,"18:00:00"]
[null," "," "," "," "," "," "," ",null," "," "," "," "," "," "," ",27,"2025-06-30"," "," "," "," "," "," ",null,null,null,"19:00:00"]
[null,null,null,null,null,null,null,null,null,null,null,null,null,null,null,null,null,null,null,null,null,null,null,null,null,null,null,"20:00:00"]
["III квартал",null,null,null,null,null,null,null,null,null,null,null,null,null,null,null,null,null,null,null,null,null,null,null,null,null,null,"21:00:00"]
[null,{"$f":"DATE(J1,7,1)","v":"2025-07-01"},null,null,null,null,null,null,null,{"$f":"DATE(J1,8,1)","v":"2025-08-01"},null,null,null,null,null,null,null,{"$f":"DATE(J1,9,1)","v":"2025-09-01"},null,null,null,null,null,null,null,null,null,"22:00:00"]
[null,null,null,null,null,null,null,null,null,null,null,null,null,null,null,null,null,null,null,null,null,null,null,null,null,null,null,"23:00:00"]
[null,"пн","вт","ср","чт","пт","сб","вс",null,"пн","вт","ср","чт","пт","сб","вс",null,"пн","вт","ср","чт","пт","сб","вс"]
[{"$f":"IF($AM$7,_xlfn.ISOWEEKNUM(MAX(B28:H28)),\"\")","v":27},{"$f":"IF(MONTH(DATE(YEAR(B25),MONTH(B25),1))\n<>MONTH(DATE(YEAR(B25),MONTH(B25),1)-\n(WEEKDAY(DATE(YEAR(B25),MONTH(B25),1),2)-1)\n+{0;1;2;3;4;5}*7+{1,2,3,4,5,6,7}-1),\" \",\nDATE(YEAR(B25),MONTH(B25),1)-\n(WEEKDAY(DATE(YEAR(B25),MONTH(B25),1),2)-1)\n+{0;1;2;3;4;5}*7+{1,2,3,4,5,6,7}-1)","v":" "},"2025-07-01","2025-07-02","2025-07-03","2025-07-04","2025-07-05","2025-07-06",{"$f":"IF($AM$7,_xlfn.ISOWEEKNUM(MAX(J28:P28)),\"\")","v":31},{"$f":"IF(MONTH(DATE(YEAR(J25),MONTH(J25),1))\n<>MONTH(DATE(YEAR(J25),MONTH(J25),1)-\n(WEEKDAY(DATE(YEAR(J25),MONTH(J25),1),2)-1)\n+{0;1;2;3;4;5}*7+{1,2,3,4,5,6,7}-1),\" \",\nDATE(YEAR(J25),MONTH(J25),1)-\n(WEEKDAY(DATE(YEAR(J25),MONTH(J25),1),2)-1)\n+{0;1;2;3;4;5}*7+{1,2,3,4,5,6,7}-1)","v":" "}," "," "," ","2025-08-01","2025-08-02","2025-08-03",{"$f":"IF($AM$7,_xlfn.ISOWEEKNUM(MAX(R28:X28)),\"\")","v":36},{"$f":"IF(MONTH(DATE(YEAR(R25),MONTH(R25),1))\n<>MONTH(DATE(YEAR(R25),MONTH(R25),1)-\n(WEEKDAY(DATE(YEAR(R25),MONTH(R25),1),2)-1)\n+{0;1;2;3;4;5}*7+{1,2,3,4,5,6,7}-1),\" \",\nDATE(YEAR(R25),MONTH(R25),1)-\n(WEEKDAY(DATE(YEAR(R25),MONTH(R25),1),2)-1)\n+{0;1;2;3;4;5}*7+{1,2,3,4,5,6,7}-1)","v":"2025-09-01"},"2025-09-02","2025-09-03","2025-09-04","2025-09-05","2025-09-06","2025-09-07"]
[{"$f":"IF($AM$7,_xlfn.ISOWEEKNUM(MAX(B29:H29)),\"\")","v":28},"2025-07-07","2025-07-08","2025-07-09","2025-07-10","2025-07-11","2025-07-12","2025-07-13",{"$f":"IF($AM$7,_xlfn.ISOWEEKNUM(MAX(J29:P29)),\"\")","v":32},"2025-08-04","2025-08-05","2025-08-06","2025-08-07","2025-08-08","2025-08-09","2025-08-10",{"$f":"IF($AM$7,_xlfn.ISOWEEKNUM(MAX(R29:X29)),\"\")","v":37},"2025-09-08","2025-09-09","2025-09-10","2025-09-11","2025-09-12","2025-09-13","2025-09-14"]
[29,"2025-07-14","2025-07-15","2025-07-16","2025-07-17","2025-07-18","2025-07-19","2025-07-20",33,"2025-08-11","2025-08-12","2025-08-13","2025-08-14","2025-08-15","2025-08-16","2025-08-17",38,"2025-09-15","2025-09-16","2025-09-17","2025-09-18","2025-09-19","2025-09-20","2025-09-21"]
[30,"2025-07-21","2025-07-22","2025-07-23","2025-07-24","2025-07-25","2025-07-26","2025-07-27",34,"2025-08-18","2025-08-19","2025-08-20","2025-08-21","2025-08-22","2025-08-23","2025-08-24",39,"2025-09-22","2025-09-23","2025-09-24","2025-09-25","2025-09-26","2025-09-27","2025-09-28"]
[31,"2025-07-28","2025-07-29","2025-07-30","2025-07-31"," "," "," ",35,"2025-08-25","2025-08-26","2025-08-27","2025-08-28","2025-08-29","2025-08-30","2025-08-31",40,"2025-09-29","2025-09-30"," "," "," "," "," "]
[null," "," "," "," "," "," "," ",null," "," "," "," "," "," "," ",null," "," "," "," "," "," "," "]
[]
["IV квартал"]
[null,{"$f":"DATE(J1,10,1)","v":"2025-10-01"},null,null,null,null,null,null,null,{"$f":"DATE(J1,11,1)","v":"2025-11-01"},null,null,null,null,null,null,null,{"$f":"DATE(J1,12,1)","v":"2025-12-01"}]
[]
[null,"пн","вт","ср","чт","пт","сб","вс",null,"пн","вт","ср","чт","пт","сб","вс",null,"пн","вт","ср","чт","пт","сб","вс"]
[{"$f":"IF($AM$7,_xlfn.ISOWEEKNUM(MAX(B39:H39)),\"\")","v":40},{"$f":"IF(MONTH(DATE(YEAR(B36),MONTH(B36),1))\n<>MONTH(DATE(YEAR(B36),MONTH(B36),1)-\n(WEEKDAY(DATE(YEAR(B36),MONTH(B36),1),2)-1)\n+{0;1;2;3;4;5}*7+{1,2,3,4,5,6,7}-1),\" \",\nDATE(YEAR(B36),MONTH(B36),1)-\n(WEEKDAY(DATE(YEAR(B36),MONTH(B36),1),2)-1)\n+{0;1;2;3;4;5}*7+{1,2,3,4,5,6,7}-1)","v":" "}," ","2025-10-01","2025-10-02","2025-10-03","2025-10-04","2025-10-05",{"$f":"IF($AM$7,_xlfn.ISOWEEKNUM(MAX(J39:P39)),\"\")","v":44},{"$f":"IF(MONTH(DATE(YEAR(J36),MONTH(J36),1))\n<>MONTH(DATE(YEAR(J36),MONTH(J36),1)-\n(WEEKDAY(DATE(YEAR(J36),MONTH(J36),1),2)-1)\n+{0;1;2;3;4;5}*7+{1,2,3,4,5,6,7}-1),\" \",\nDATE(YEAR(J36),MONTH(J36),1)-\n(WEEKDAY(DATE(YEAR(J36),MONTH(J36),1),2)-1)\n+{0;1;2;3;4;5}*7+{1,2,3,4,5,6,7}-1)","v":" "}," "," "," "," ","2025-11-01","2025-11-02",{"$f":"IF($AM$7,_xlfn.ISOWEEKNUM(MAX(R39:X39)),\"\")","v":49},{"$f":"IF(MONTH(DATE(YEAR(R36),MONTH(R36),1))\n<>MONTH(DATE(YEAR(R36),MONTH(R36),1)-\n(WEEKDAY(DATE(YEAR(R36),MONTH(R36),1),2)-1)\n+{0;1;2;3;4;5}*7+{1,2,3,4,5,6,7}-1),\" \",\nDATE(YEAR(R36),MONTH(R36),1)-\n(WEEKDAY(DATE(YEAR(R36),MONTH(R36),1),2)-1)\n+{0;1;2;3;4;5}*7+{1,2,3,4,5,6,7}-1)","v":"2025-12-01"},"2025-12-02","2025-12-03","2025-12-04","2025-12-05","2025-12-06","2025-12-07"]
[{"$f":"IF($AM$7,_xlfn.ISOWEEKNUM(MAX(B40:H40)),\"\")","v":41},"2025-10-06","2025-10-07","2025-10-08","2025-10-09","2025-10-10","2025-10-11","2025-10-12",{"$f":"IF($AM$7,_xlfn.ISOWEEKNUM(MAX(J40:P40)),\"\")","v":45},"2025-11-03","2025-11-04","2025-11-05","2025-11-06","2025-11-07","2025-11-08","2025-11-09",{"$f":"IF($AM$7,_xlfn.ISOWEEKNUM(MAX(R40:X40)),\"\")","v":50},"2025-12-08","2025-12-09","2025-12-10","2025-12-11","2025-12-12","2025-12-13","2025-12-14"]
[42,"2025-10-13","2025-10-14","2025-10-15","2025-10-16","2025-10-17","2025-10-18","2025-10-19",46,"2025-11-10","2025-11-11","2025-11-12","2025-11-13","2025-11-14","2025-11-15","2025-11-16",51,"2025-12-15","2025-12-16","2025-12-17","2025-12-18","2025-12-19","2025-12-20","2025-12-21"]
[43,"2025-10-20","2025-10-21","2025-10-22","2025-10-23","2025-10-24","2025-10-25","2025-10-26",47,"2025-11-17","2025-11-18","2025-11-19","2025-11-20","2025-11-21","2025-11-22","2025-11-23",52,"2025-12-22","2025-12-23","2025-12-24","2025-12-25","2025-12-26","2025-12-27","2025-12-28"]
[44,"2025-10-27","2025-10-28","2025-10-29","2025-10-30","2025-10-31"," "," ",48,"2025-11-24","2025-11-25","2025-11-26","2025-11-27","2025-11-28","2025-11-29","2025-11-30",1,"2025-12-29","2025-12-30","2025-12-31"," "," "," "," "]
[null," "," "," "," "," "," "," ",null," "," "," "," "," "," "," ",null," "," "," "," "," "," "," "]

{"sheet":"Пинарик","index":1,"n_rows":26,"n_cols":32,"rows_kept":26,"cut":false,"hidden":false,"merged":[[28,0,28,7],[29,0,29,7],[30,0,30,7],[31,0,31,7],[32,0,32,7],[25,30,25,31],[25,28,25,29],[25,26,25,27],[25,24,25,25],[25,22,25,23],[38,0,38,7],[36,0,36,7],[37,0,37,7],[25,20,25,21],[25,18,25,19],[25,16,25,17],[34,0,34,7],[35,0,35,7],[33,0,33,7],[25,14,25,15],[25,12,25,13],[25,10,25,11],[25,8,25,9],[26,0,26,7],[27,0,27,7],[25,0,25,7]]}
["Календарик - пинарик",null,null,null,null,null,null,null,null,null,null,null,null,null,null,null,null,null,null,null,null,null,null,null,null,null,"Инструкция по использованию:",null,null,null,null," time-shkola.ru/archives/211"]
["2025 год"]
["янв",{"$f":"DATE(2025,ROW()-2,COLUMN()-1)","v":"2025-01-01"},{"$f":"DATE(2025,ROW()-2,COLUMN()-1)","v":"2025-01-02"},"2025-01-03","2025-01-04","2025-01-05","2025-01-06","2025-01-07","2025-01-08","2025-01-09","2025-01-10","2025-01-11","2025-01-12","2025-01-13","2025-01-14","2025-01-15","2025-01-16","2025-01-17","2025-01-18","2025-01-19","2025-01-20","2025-01-21","2025-01-22","2025-01-23","2025-01-24","2025-01-25","2025-01-26","2025-01-27","2025-01-28","2025-01-29","2025-01-30","2025-01-31"]
["фев",{"$f":"DATE(2025,ROW()-2,COLUMN()-1)","v":"2025-02-01"},"2025-02-02","2025-02-03","2025-02-04","2025-02-05","2025-02-06","2025-02-07","2025-02-08","2025-02-09","2025-02-10","2025-02-11","2025-02-12","2025-02-13","2025-02-14","2025-02-15","2025-02-16","2025-02-17","2025-02-18","2025-02-19","2025-02-20","2025-02-21","2025-02-22","2025-02-23","2025-02-24","2025-02-25","2025-02-26","2025-02-27","2025-02-28","2025-03-01","2025-03-02","2025-03-03"]
["мар","2025-03-01","2025-03-02","2025-03-03","2025-03-04","2025-03-05","2025-03-06","2025-03-07","2025-03-08","2025-03-09","2025-03-10","2025-03-11","2025-03-12","2025-03-13","2025-03-14","2025-03-15","2025-03-16","2025-03-17","2025-03-18","2025-03-19","2025-03-20","2025-03-21","2025-03-22","2025-03-23","2025-03-24","2025-03-25","2025-03-26","2025-03-27","2025-03-28","2025-03-29","2025-03-30","2025-03-31"]
["апр","2025-04-01","2025-04-02","2025-04-03","2025-04-04","2025-04-05","2025-04-06","2025-04-07","2025-04-08","2025-04-09","2025-04-10","2025-04-11","2025-04-12","2025-04-13","2025-04-14","2025-04-15","2025-04-16","2025-04-17","2025-04-18","2025-04-19","2025-04-20","2025-04-21","2025-04-22","2025-04-23","2025-04-24","2025-04-25","2025-04-26","2025-04-27","2025-04-28","2025-04-29","2025-04-30","2025-05-01"]
["май","2025-05-01","2025-05-02","2025-05-03","2025-05-04","2025-05-05","2025-05-06","2025-05-07","2025-05-08","2025-05-09","2025-05-10","2025-05-11","2025-05-12","2025-05-13","2025-05-14","2025-05-15","2025-05-16","2025-05-17","2025-05-18","2025-05-19","2025-05-20","2025-05-21","2025-05-22","2025-05-23","2025-05-24","2025-05-25","2025-05-26","2025-05-27","2025-05-28","2025-05-29","2025-05-30","2025-05-31"]
["июн","2025-06-01","2025-06-02","2025-06-03","2025-06-04","2025-06-05","2025-06-06","2025-06-07","2025-06-08","2025-06-09","2025-06-10","2025-06-11","2025-06-12","2025-06-13","2025-06-14","2025-06-15","2025-06-16","2025-06-17","2025-06-18","2025-06-19","2025-06-20","2025-06-21","2025-06-22","2025-06-23","2025-06-24","2025-06-25","2025-06-26","2025-06-27","2025-06-28","2025-06-29","2025-06-30","2025-07-01"]
["июл","2025-07-01","2025-07-02","2025-07-03","2025-07-04","2025-07-05","2025-07-06","2025-07-07","2025-07-08","2025-07-09","2025-07-10","2025-07-11","2025-07-12","2025-07-13","2025-07-14","2025-07-15","2025-07-16","2025-07-17","2025-07-18","2025-07-19","2025-07-20","2025-07-21","2025-07-22","2025-07-23","2025-07-24","2025-07-25","2025-07-26","2025-07-27","2025-07-28","2025-07-29","2025-07-30","2025-07-31"]
["авг","2025-08-01","2025-08-02","2025-08-03","2025-08-04","2025-08-05","2025-08-06","2025-08-07","2025-08-08","2025-08-09","2025-08-10","2025-08-11","2025-08-12","2025-08-13","2025-08-14","2025-08-15","2025-08-16","2025-08-17","2025-08-18","2025-08-19","2025-08-20","2025-08-21","2025-08-22","2025-08-23","2025-08-24","2025-08-25","2025-08-26","2025-08-27","2025-08-28","2025-08-29","2025-08-30","2025-08-31"]
["сен","2025-09-01","2025-09-02","2025-09-03","2025-09-04","2025-09-05","2025-09-06","2025-09-07","2025-09-08","2025-09-09","2025-09-10","2025-09-11","2025-09-12","2025-09-13","2025-09-14","2025-09-15","2025-09-16",{"$f":"DATE(2025,ROW()-2,COLUMN()-1)","v":"2025-09-17"},"2025-09-18","2025-09-19","2025-09-20","2025-09-21","2025-09-22","2025-09-23","2025-09-24","2025-09-25","2025-09-26","2025-09-27","2025-09-28","2025-09-29","2025-09-30","2025-10-01"]
["окт","2025-10-01","2025-10-02","2025-10-03","2025-10-04","2025-10-05","2025-10-06","2025-10-07","2025-10-08","2025-10-09","2025-10-10","2025-10-11","2025-10-12","2025-10-13","2025-10-14","2025-10-15","2025-10-16","2025-10-17","2025-10-18","2025-10-19","2025-10-20","2025-10-21","2025-10-22","2025-10-23","2025-10-24","2025-10-25","2025-10-26","2025-10-27","2025-10-28","2025-10-29","2025-10-30","2025-10-31"]
["ноя","2025-11-01","2025-11-02","2025-11-03","2025-11-04","2025-11-05","2025-11-06","2025-11-07","2025-11-08","2025-11-09","2025-11-10","2025-11-11","2025-11-12","2025-11-13","2025-11-14","2025-11-15","2025-11-16","2025-11-17","2025-11-18","2025-11-19","2025-11-20","2025-11-21","2025-11-22","2025-11-23","2025-11-24","2025-11-25","2025-11-26","2025-11-27","2025-11-28","2025-11-29","2025-11-30","2025-12-01"]
["дек","2025-12-01","2025-12-02","2025-12-03","2025-12-04","2025-12-05","2025-12-06","2025-12-07","2025-12-08","2025-12-09","2025-12-10","2025-12-11","2025-12-12","2025-12-13","2025-12-14","2025-12-15","2025-12-16","2025-12-17","2025-12-18","2025-12-19","2025-12-20","2025-12-21","2025-12-22","2025-12-23","2025-12-24","2025-12-25","2025-12-26","2025-12-27","2025-12-28","2025-12-29","2025-12-30","2025-12-31"]
[]
[]
["Прожитые годы"]
[1,2,3,4,5,6,7,8,9,10,11,12,13,14,15,16,17,18,19,20,21,22,23,24,25,26,27,28,29,30,31,32]
[33,34,35,36,37,38,39,40,41,42,43,44,45,46,47,48,49,50,51,52,53,54,55,56,57,58,59,60,61,62,63,64]
[65,66,67,68,69,70,71,72,73,74,75,76,77,78,79,80,81,82,83,84,85,86,87,88,89,90,91,92,93,94,95,96]
[]
[]
[]
[]
["Цели на 2025 год"]
["Чего я хочу",null,null,null,null,null,null,null,"янв",null,"фев",null,"мар",null,"апр",null,"май",null,"июн",null,"июл",null,"авг",null,"сен",null,"окт",null,"ноя",null,"дек"]

{"sheet":"События","index":2,"n_rows":366,"n_cols":26,"rows_kept":366,"cut":false,"hidden":false,"merged":[]}
["Дата/Время","0:00","1:00","2:00","3:00","4:00","5:00","6:00","7:00","8:00","9:00","10:00","11:00","12:00","13:00","14:00","15:00","16:00","17:00","18:00","19:00","20:00","21:00","22:00","23:00","Итого событий"]
["2025-01-01","Встретить новый год!",null,"Бахнуть салюты",null,null,null,null,null,null,null,null,null,null,null,null,null,null,"Сходить в баню",null,null,null,null,null,null,{"$f":"COUNTA(B2:Y2)","v":3}]
["2025-01-02",null,null,null,null,null,null,null,null,null,"Доесть оливье",null,null,"Погулять с ребенком",null,null,null,"Написать план на год",null,null,null,null,null,null,null,{"$f":"COUNTA(B3:Y3)","v":3}]
["2025-01-03",null,null,null,null,null,null,null,null,null,null,null,null,null,null,null,null,null,null,null,null,null,null,null,null,0]
["2025-01-04",null,null,null,null,null,null,null,null,null,null,null,null,null,null,null,null,null,null,null,null,null,null,null,null,0]
["2025-01-05",null,null,null,null,null,null,null,null,null,null,null,null,null,null,null,null,null,null,null,null,null,null,null,null,0]
["2025-01-06",null,null,null,null,null,null,null,null,null,null,null,null,null,null,null,null,null,null,null,null,null,null,null,null,0]
["2025-01-07",null,null,null,null,null,null,null,null,null,null,null,null,null,null,null,null,null,null,null,null,null,null,null,null,0]
["2025-01-08",null,null,null,null,null,null,null,null,null,null,null,null,null,null,null,null,null,null,null,null,null,null,null,null,0]
["2025-01-09",null,null,null,null,null,null,null,null,null,null,null,null,null,null,null,null,null,null,null,null,null,null,null,null,0]
["2025-01-10",null,null,null,null,null,null,null,null,null,null,null,null,null,null,null,null,null,null,null,null,null,null,null,null,0]
["2025-01-11",null,null,null,null,null,null,null,null,null,null,null,null,null,null,null,null,null,null,null,null,null,null,null,null,0]
["2025-01-12",null,null,null,null,null,null,null,null,null,null,null,null,null,null,null,null,null,null,null,null,null,null,null,null,0]
["2025-01-13",null,null,null,null,null,null,null,null,null,null,null,null,null,null,null,null,null,null,null,null,null,null,null,null,0]
["2025-01-14",null,null,null,null,null,null,null,null,null,null,null,null,null,null,null,null,null,null,null,null,null,null,null,null,0]
["2025-01-15",null,null,null,null,null,null,null,null,null,null,null,null,null,null,null,null,null,null,null,null,null,null,null,null,0]
["2025-01-16",null,null,null,null,null,null,null,null,null,null,null,null,null,null,null,null,null,null,null,null,null,null,null,null,0]
["2025-01-17",null,null,null,null,null,null,null,null,null,null,null,null,null,null,null,null,null,null,null,null,null,null,null,null,0]
["2025-01-18",null,null,null,null,null,null,null,null,null,null,null,null,null,null,null,null,null,null,null,null,null,null,null,null,0]
["2025-01-19",null,null,null,null,null,null,null,null,null,null,null,null,null,null,null,null,null,null,null,null,null,null,null,null,0]
["2025-01-20",null,null,null,null,null,null,null,null,null,null,null,null,null,null,null,null,null,null,null,null,null,null,null,null,0]
["2025-01-21",null,null,null,null,null,null,null,null,null,null,null,null,null,null,null,null,null,null,null,null,null,null,null,null,0]
["2025-01-22",null,null,null,null,null,null,null,null,null,null,null,null,null,null,null,null,null,null,null,null,null,null,null,null,0]
["2025-01-23",null,null,null,null,null,null,null,null,null,null,null,null,null,null,null,null,null,null,null,null,null,null,null,null,0]
["2025-01-24",null,null,null,null,null,null,null,null,null,null,null,null,null,null,null,null,null,null,null,null,null,null,null,null,0]
["2025-01-25",null,null,null,null,null,null,null,null,null,null,null,null,null,null,null,null,null,null,null,null,null,null,null,null,0]
["2025-01-26",null,null,null,null,null,null,null,null,null,null,null,null,null,null,null,null,null,null,null,null,null,null,null,null,0]
["2025-01-27",null,null,null,null,null,null,null,null,null,null,null,null,null,null,null,null,null,null,null,null,null,null,null,null,0]
["2025-01-28",null,null,null,null,null,null,null,null,null,null,null,null,null,null,null,null,null,null,null,null,null,null,null,null,0]
["2025-01-29",null,null,null,null,null,null,null,null,null,null,null,null,null,null,null,null,null,null,null,null,null,null,null,null,0]
["2025-01-30",null,null,null,null,null,null,null,null,null,null,null,null,null,null,null,null,null,null,null,null,null,null,null,null,0]
["2025-01-31",null,null,null,null,null,null,null,null,null,null,null,null,null,null,null,null,null,null,null,null,null,null,null,null,0]
["2025-02-01",null,null,null,null,null,null,null,null,null,null,null,null,null,null,null,null,null,null,null,null,null,null,null,null,0]
["2025-02-02",null,null,null,null,null,null,null,null,null,null,null,null,null,null,null,null,null,null,null,null,null,null,null,null,0]
["2025-02-03",null,null,null,null,null,null,null,null,null,null,null,null,null,null,null,null,null,null,null,null,null,null,null,null,0]
["2025-02-04",null,null,null,null,null,null,null,null,null,null,null,null,null,null,null,null,null,null,null,null,null,null,null,null,0]
["2025-02-05",null,null,null,null,null,null,null,null,null,null,null,null,null,null,null,null,null,null,null,null,null,null,null,null,0]
["2025-02-06",null,null,null,null,null,null,null,null,null,null,null,null,null,null,null,null,null,null,null,null,null,null,null,null,0]
["2025-02-07",null,null,null,null,null,null,null,null,null,null,null,null,null,null,null,null,null,null,null,null,null,null,null,null,0]
["2025-02-08",null,null,null,null,null,null,null,null,null,null,null,null,null,null,null,null,null,null,null,null,null,null,null,null,0]
["2025-02-09",null,null,null,null,null,null,null,null,null,null,null,null,null,null,null,null,null,null,null,null,null,null,null,null,0]
["2025-02-10",null,null,null,null,null,null,null,null,null,null,null,null,null,null,null,null,null,null,null,null,null,null,null,null,0]
["2025-02-11",null,null,null,null,null,null,null,null,null,null,null,null,null,null,null,null,null,null,null,null,null,null,null,null,0]
["2025-02-12",null,null,null,null,null,null,null,null,null,null,null,null,null,null,null,null,null,null,null,null,null,null,null,null,0]
["2025-02-13",null,null,null,null,null,null,null,null,null,null,null,null,null,null,null,null,null,null,null,null,null,null,null,null,0]
["2025-02-14",null,null,null,null,null,null,null,null,null,null,null,null,null,null,null,null,null,null,null,null,null,null,null,null,0]
["2025-02-15",null,null,null,null,null,null,null,null,null,null,null,null,null,null,null,null,null,null,null,null,null,null,null,null,0]
["2025-02-16",null,null,null,null,null,null,null,null,null,null,null,null,null,null,null,null,null,null,null,null,null,null,null,null,0]
["2025-02-17",null,null,null,null,null,null,null,null,null,null,null,null,null,null,null,null,null,null,null,null,null,null,null,null,0]
["2025-02-18",null,null,null,null,null,null,null,null,null,null,null,null,null,null,null,null,null,null,null,null,null,null,null,null,0]
["2025-02-19",null,null,null,null,null,null,null,null,null,null,null,null,null,null,null,null,null,null,null,null,null,null,null,null,0]
["2025-02-20",null,null,null,null,null,null,null,null,null,null,null,null,null,null,null,null,null,null,null,null,null,null,null,null,0]
["2025-02-21",null,null,null,null,null,null,null,null,null,null,null,null,null,null,null,null,null,null,null,null,null,null,null,null,0]
["2025-02-22",null,null,null,null,null,null,null,null,null,null,null,null,null,null,null,null,null,null,null,null,null,null,null,null,0]
["2025-02-23",null,null,null,null,null,null,null,null,null,null,null,null,null,null,null,null,null,null,null,null,null,null,null,null,0]
["2025-02-24",null,null,null,null,null,null,null,null,null,null,null,null,null,null,null,null,null,null,null,null,null,null,null,null,0]
["2025-02-25",null,null,null,null,null,null,null,null,null,null,null,null,null,null,null,null,null,null,null,null,null,null,null,null,0]
["2025-02-26",null,null,null,null,null,null,null,null,null,null,null,null,null,null,null,null,null,null,null,null,null,null,null,null,0]
["2025-02-27",null,null,null,null,null,null,null,null,null,null,null,null,null,null,null,null,null,null,null,null,null,null,null,null,0]
["2025-02-28",null,null,null,null,null,null,null,null,null,null,null,null,null,null,null,null,null,null,null,null,null,null,null,null,0]
["2025-03-01",null,null,null,null,null,null,null,null,null,null,null,null,null,null,null,null,null,null,null,null,null,null,null,null,0]
["2025-03-02",null,null,null,null,null,null,null,null,null,null,null,null,null,null,null,null,null,null,null,null,null,null,null,null,0]
["2025-03-03",null,null,null,null,null,null,null,null,null,null,null,null,null,null,null,null,null,null,null,null,null,null,null,null,0]
["2025-03-04",null,null,null,null,null,null,null,null,null,null,null,null,null,null,null,null,null,null,null,null,null,null,null,null,0]
["2025-03-05",null,null,null,null,null,null,null,null,null,null,null,null,null,null,null,null,null,null,null,null,null,null,null,null,0]
["2025-03-06",null,null,null,null,null,null,null,null,null,null,null,null,null,null,null,null,null,null,null,null,null,null,null,null,0]
["2025-03-07",null,null,null,null,null,null,null,null,null,null,null,null,null,null,null,null,null,null,null,null,null,null,null,null,{"$f":"COUNTA(B67:Y67)","v":0}]
["2025-03-08",null,null,null,null,null,null,null,null,null,null,null,null,null,null,null,null,null,null,null,null,null,null,null,null,0]
["2025-03-09",null,null,null,null,null,null,null,null,null,null,null,null,null,null,null,null,null,null,null,null,null,null,null,null,0]
["2025-03-10",null,null,null,null,null,null,null,null,null,null,null,null,null,null,null,null,null,null,null,null,null,null,null,null,0]
["2025-03-11",null,null,null,null,null,null,null,null,null,null,null,null,null,null,null,null,null,null,null,null,null,null,null,null,0]
["2025-03-12",null,null,null,null,null,null,null,null,null,null,null,null,null,null,null,null,null,null,null,null,null,null,null,null,0]
["2025-03-13",null,null,null,null,null,null,null,null,null,null,null,null,null,null,null,null,null,null,null,null,null,null,null,null,0]
["2025-03-14",null,null,null,null,null,null,null,null,null,null,null,null,null,null,null,null,null,null,null,null,null,null,null,null,0]
["2025-03-15",null,null,null,null,null,null,null,null,null,null,null,null,null,null,null,null,null,null,null,null,null,null,null,null,0]
["2025-03-16",null,null,null,null,null,null,null,null,null,null,null,null,null,null,null,null,null,null,null,null,null,null,null,null,0]
["2025-03-17",null,null,null,null,null,null,null,null,null,null,null,null,null,null,null,null,null,null,null,null,null,null,null,null,0]
["2025-03-18",null,null,null,null,null,null,null,null,null,null,null,null,null,null,null,null,null,null,null,null,null,null,null,null,0]
["2025-03-19",null,null,null,null,null,null,null,null,null,null,null,null,null,null,null,null,null,null,null,null,null,null,null,null,0]
["2025-03-20",null,null,null,null,null,null,null,null,null,null,null,null,null,null,null,null,null,null,null,null,null,null,null,null,0]
["2025-03-21",null,null,null,null,null,null,null,null,null,null,null,null,null,null,null,null,null,null,null,null,null,null,null,null,0]
["2025-03-22",null,null,null,null,null,null,null,null,null,null,null,null,null,null,null,null,null,null,null,null,null,null,null,null,0]
["2025-03-23",null,null,null,null,null,null,null,null,null,null,null,null,null,null,null,null,null,null,null,null,null,null,null,null,0]
["2025-03-24",null,null,null,null,null,null,null,null,null,null,null,null,null,null,null,null,null,null,null,null,null,null,null,null,0]
["2025-03-25",null,null,null,null,null,null,null,null,null,null,null,null,null,null,null,null,null,null,null,null,null,null,null,null,0]
["2025-03-26",null,null,null,null,null,null,null,null,null,null,null,null,null,null,null,null,null,null,null,null,null,null,null,null,0]
["2025-03-27",null,null,null,null,null,null,null,null,null,null,null,null,null,null,null,null,null,null,null,null,null,null,null,null,0]
["2025-03-28",null,null,null,null,null,null,null,null,null,null,null,null,null,null,null,null,null,null,null,null,null,null,null,null,0]
["2025-03-29",null,null,null,null,null,null,null,null,null,null,null,null,null,null,null,null,null,null,null,null,null,null,null,null,0]
["2025-03-30",null,null,null,null,null,null,null,null,null,null,null,null,null,null,null,null,null,null,null,null,null,null,null,null,0]
["2025-03-31",null,null,null,null,null,null,null,null,null,null,null,null,null,null,null,null,null,null,null,null,null,null,null,null,0]
["2025-04-01",null,null,null,null,null,null,null,null,null,null,null,null,null,null,null,null,null,null,null,null,null,null,null,null,0]
["2025-04-02",null,null,null,null,null,null,null,null,null,null,null,null,null,null,null,null,null,null,null,null,null,null,null,null,0]
["2025-04-03",null,null,null,null,null,null,null,null,null,null,null,null,null,null,null,null,null,null,null,null,null,null,null,null,0]
["2025-04-04",null,null,null,null,null,null,null,null,null,null,null,null,null,null,null,null,null,null,null,null,null,null,null,null,0]
["2025-04-05",null,null,null,null,null,null,null,null,null,null,null,null,null,null,null,null,null,null,null,null,null,null,null,null,0]
["2025-04-06",null,null,null,null,null,null,null,null,null,null,null,null,null,null,null,null,null,null,null,null,null,null,null,null,0]
["2025-04-07",null,null,null,null,null,null,null,null,null,null,null,null,null,null,null,null,null,null,null,null,null,null,null,null,0]
["2025-04-08",null,null,null,null,null,null,null,null,null,null,null,null,null,null,null,null,null,null,null,null,null,null,null,null,0]
["2025-04-09",null,null,null,null,null,null,null,null,null,null,null,null,null,null,null,null,null,null,null,null,null,null,null,null,0]
["2025-04-10",null,null,null,null,null,null,null,null,null,null,null,null,null,null,null,null,null,null,null,null,null,null,null,null,0]
["2025-04-11",null,null,null,null,null,null,null,null,null,null,null,null,null,null,null,null,null,null,null,null,null,null,null,null,0]
["2025-04-12",null,null,null,null,null,null,null,null,null,null,null,null,null,null,null,null,null,null,null,null,null,null,null,null,0]
["2025-04-13",null,null,null,null,null,null,null,null,null,null,null,null,null,null,null,null,null,null,null,null,null,null,null,null,0]
["2025-04-14",null,null,null,null,null,null,null,null,null,null,null,null,null,null,null,null,null,null,null,null,null,null,null,null,0]
["2025-04-15",null,null,null,null,null,null,null,null,null,null,null,null,null,null,null,null,null,null,null,null,null,null,null,null,0]
["2025-04-16",null,null,null,null,null,null,null,null,null,null,null,null,null,null,null,null,null,null,null,null,null,null,null,null,0]
["2025-04-17",null,null,null,null,null,null,null,null,null,null,null,null,null,null,null,null,null,null,null,null,null,null,null,null,0]
["2025-04-18",null,null,null,null,null,null,null,null,null,null,null,null,null,null,null,null,null,null,null,null,null,null,null,null,0]
["2025-04-19",null,null,null,null,null,null,null,null,null,null,null,null,null,null,null,null,null,null,null,null,null,null,null,null,0]
["2025-04-20",null,null,null,null,null,null,null,null,null,null,null,null,null,null,null,null,null,null,null,null,null,null,null,null,0]
["2025-04-21",null,null,null,null,null,null,null,null,null,null,null,null,null,null,null,null,null,null,null,null,null,null,null,null,0]
["2025-04-22",null,null,null,null,null,null,null,null,null,null,null,null,null,null,null,null,null,null,null,null,null,null,null,null,0]
["2025-04-23",null,null,null,null,null,null,null,null,null,null,null,null,null,null,null,null,null,null,null,null,null,null,null,null,0]
["2025-04-24",null,null,null,null,null,null,null,null,null,null,null,null,null,null,null,null,null,null,null,null,null,null,null,null,0]
["2025-04-25",null,null,null,null,null,null,null,null,null,null,null,null,null,null,null,null,null,null,null,null,null,null,null,null,0]
["2025-04-26",null,null,null,null,null,null,null,null,null,null,null,null,null,null,null,null,null,null,null,null,null,null,null,null,0]
["2025-04-27",null,null,null,null,null,null,null,null,null,null,null,null,null,null,null,null,null,null,null,null,null,null,null,null,0]
["2025-04-28",null,null,null,null,null,null,null,null,null,null,null,null,null,null,null,null,null,null,null,null,null,null,null,null,0]
["2025-04-29",null,null,null,null,null,null,null,null,null,null,null,null,null,null,null,null,null,null,null,null,null,null,null,null,0]
["2025-04-30",null,null,null,null,null,null,null,null,null,null,null,null,null,null,null,null,null,null,null,null,null,null,null,null,0]
["2025-05-01",null,null,null,null,null,null,null,null,null,null,null,null,null,null,null,null,null,null,null,null,null,null,null,null,0]
["2025-05-02",null,null,null,null,null,null,null,null,null,null,null,null,null,null,null,null,null,null,null,null,null,null,null,null,0]
["2025-05-03",null,null,null,null,null,null,null,null,null,null,null,null,null,null,null,null,null,null,null,null,null,null,null,null,0]
["2025-05-04",null,null,null,null,null,null,null,null,null,null,null,null,null,null,null,null,null,null,null,null,null,null,null,null,0]
["2025-05-05",null,null,null,null,null,null,null,null,null,null,null,null,null,null,null,null,null,null,null,null,null,null,null,null,0]
["2025-05-06",null,null,null,null,null,null,null,null,null,null,null,null,null,null,null,null,null,null,null,null,null,null,null,null,0]
["2025-05-07",null,null,null,null,null,null,null,null,null,null,null,null,null,null,null,null,null,null,null,null,null,null,null,null,0]
["2025-05-08",null,null,null,null,null,null,null,null,null,null,null,null,null,null,null,null,null,null,null,null,null,null,null,null,0]
["2025-05-09",null,null,null,null,null,null,null,null,null,null,null,null,null,null,null,null,null,null,null,null,null,null,null,null,0]
["2025-05-10",null,null,null,null,null,null,null,null,null,null,null,null,null,null,null,null,null,null,null,null,null,null,null,null,{"$f":"COUNTA(B131:Y131)","v":0}]
["2025-05-11",null,null,null,null,null,null,null,null,null,null,null,null,null,null,null,null,null,null,null,null,null,null,null,null,0]
["2025-05-12",null,null,null,null,null,null,null,null,null,null,null,null,null,null,null,null,null,null,null,null,null,null,null,null,0]
["2025-05-13",null,null,null,null,null,null,null,null,null,null,null,null,null,null,null,null,null,null,null,null,null,null,null,null,0]
["2025-05-14",null,null,null,null,null,null,null,null,null,null,null,null,null,null,null,null,null,null,null,null,null,null,null,null,0]
["2025-05-15",null,null,null,null,null,null,null,null,null,null,null,null,null,null,null,null,null,null,null,null,null,null,null,null,0]
["2025-05-16",null,null,null,null,null,null,null,null,null,null,null,null,null,null,null,null,null,null,null,null,null,null,null,null,0]
["2025-05-17",null,null,null,null,null,null,null,null,null,null,null,null,null,null,null,null,null,null,null,null,null,null,null,null,0]
["2025-05-18",null,null,null,null,null,null,null,null,null,null,null,null,null,null,null,null,null,null,null,null,null,null,null,null,0]
["2025-05-19",null,null,null,null,null,null,null,null,null,null,null,null,null,null,null,null,null,null,null,null,null,null,null,null,0]
["2025-05-20",null,null,null,null,null,null,null,null,null,null,null,null,null,null,null,null,null,null,null,null,null,null,null,null,0]
["2025-05-21",null,null,null,null,null,null,null,null,null,null,null,null,null,null,null,null,null,null,null,null,null,null,null,null,0]
["2025-05-22",null,null,null,null,null,null,null,null,null,null,null,null,null,null,null,null,null,null,null,null,null,null,null,null,0]
["2025-05-23",null,null,null,null,null,null,null,null,null,null,null,null,null,null,null,null,null,null,null,null,null,null,null,null,0]
["2025-05-24",null,null,null,null,null,null,null,null,null,null,null,null,null,null,null,null,null,null,null,null,null,null,null,null,0]
["2025-05-25",null,null,null,null,null,null,null,null,null,null,null,null,null,null,null,null,null,null,null,null,null,null,null,null,0]
["2025-05-26",null,null,null,null,null,null,null,null,null,null,null,null,null,null,null,null,null,null,null,null,null,null,null,null,0]
["2025-05-27",null,null,null,null,null,null,null,null,null,null,null,null,null,null,null,null,null,null,null,null,null,null,null,null,0]
["2025-05-28",null,null,null,null,null,null,null,null,null,null,null,null,null,null,null,null,null,null,null,null,null,null,null,null,0]
["2025-05-29",null,null,null,null,null,null,null,null,null,null,null,null,null,null,null,null,null,null,null,null,null,null,null,null,0]
["2025-05-30",null,null,null,null,null,null,null,null,null,null,null,null,null,null,null,null,null,null,null,null,null,null,null,null,0]
["2025-05-31",null,null,null,null,null,null,null,null,null,null,null,null,null,null,null,null,null,null,null,null,null,null,null,null,0]
["2025-06-01",null,null,null,null,null,null,null,null,null,null,null,null,null,null,null,null,null,null,null,null,null,null,null,null,0]
["2025-06-02",null,null,null,null,null,null,null,null,null,null,null,null,null,null,null,null,null,null,null,null,null,null,null,null,0]
["2025-06-03",null,null,null,null,null,null,null,null,null,null,null,null,null,null,null,null,null,null,null,null,null,null,null,null,0]
["2025-06-04",null,null,null,null,null,null,null,null,null,null,null,null,null,null,null,null,null,null,null,null,null,null,null,null,0]
["2025-06-05",null,null,null,null,null,null,null,null,null,null,null,null,null,null,null,null,null,null,null,null,null,null,null,null,0]
["2025-06-06",null,null,null,null,null,null,null,null,null,null,null,null,null,null,null,null,null,null,null,null,null,null,null,null,0]
["2025-06-07",null,null,null,null,null,null,null,null,null,null,null,null,null,null,null,null,null,null,null,null,null,null,null,null,0]
["2025-06-08",null,null,null,null,null,null,null,null,null,null,null,null,null,null,null,null,null,null,null,null,null,null,null,null,0]
["2025-06-09",null,null,null,null,null,null,null,null,null,null,null,null,null,null,null,null,null,null,null,null,null,null,null,null,0]
["2025-06-10",null,null,null,null,null,null,null,null,null,null,null,null,null,null,null,null,null,null,null,null,null,null,null,null,0]
["2025-06-11",null,null,null,null,null,null,null,null,null,null,null,null,null,null,null,null,null,null,null,null,null,null,null,null,0]
["2025-06-12",null,null,null,null,null,null,null,null,null,null,null,null,null,null,null,null,null,null,null,null,null,null,null,null,0]
["2025-06-13",null,null,null,null,null,null,null,null,null,null,null,null,null,null,null,null,null,null,null,null,null,null,null,null,0]
["2025-06-14",null,null,null,null,null,null,null,null,null,null,null,null,null,null,null,null,null,null,null,null,null,null,null,null,0]
["2025-06-15",null,null,null,null,null,null,null,null,null,null,null,null,null,null,null,null,null,null,null,null,null,null,null,null,0]
["2025-06-16",null,null,null,null,null,null,null,null,null,null,null,null,null,null,null,null,null,null,null,null,null,null,null,null,0]
["2025-06-17",null,null,null,null,null,null,null,null,null,null,null,null,null,null,null,null,null,null,null,null,null,null,null,null,0]
["2025-06-18",null,null,null,null,null,null,null,null,null,null,null,null,null,null,null,null,null,null,null,null,null,null,null,null,0]
["2025-06-19",null,null,null,null,null,null,null,null,null,null,null,null,null,null,null,null,null,null,null,null,null,null,null,null,0]
["2025-06-20",null,null,null,null,null,null,null,null,null,null,null,null,null,null,null,null,null,null,null,null,null,null,null,null,0]
["2025-06-21",null,null,null,null,null,null,null,null,null,null,null,null,null,null,null,null,null,null,null,null,null,null,null,null,0]
["2025-06-22",null,null,null,null,null,null,null,null,null,null,null,null,null,null,null,null,null,null,null,null,null,null,null,null,0]
["2025-06-23",null,null,null,null,null,null,null,null,null,null,null,null,null,null,null,null,null,null,null,null,null,null,null,null,0]
["2025-06-24",null,null,null,null,null,null,null,null,null,null,null,null,null,null,null,null,null,null,null,null,null,null,null,null,0]
["2025-06-25",null,null,null,null,null,null,null,null,null,null,null,null,null,null,null,null,null,null,null,null,null,null,null,null,0]
["2025-06-26",null,null,null,null,null,null,null,null,null,null,null,null,null,null,null,null,null,null,null,null,null,null,null,null,0]
["2025-06-27",null,null,null,null,null,null,null,null,null,null,null,null,null,null,null,null,null,null,null,null,null,null,null,null,0]
["2025-06-28",null,null,null,null,null,null,null,null,null,null,null,null,null,null,null,null,null,null,null,null,null,null,null,null,0]
["2025-06-29",null,null,null,null,null,null,null,null,null,null,null,null,null,null,null,null,null,null,null,null,null,null,null,null,0]
["2025-06-30",null,null,null,null,null,null,null,null,null,null,null,null,null,null,null,null,null,null,null,null,null,null,null,null,0]
["2025-07-01",null,null,null,null,null,null,null,null,null,null,null,null,null,null,null,null,null,null,null,null,null,null,null,null,0]
["2025-07-02",null,null,null,null,null,null,null,null,null,null,null,null,null,null,null,null,null,null,null,null,null,null,null,null,0]
["2025-07-03",null,null,null,null,null,null,null,null,null,null,null,null,null,null,null,null,null,null,null,null,null,null,null,null,0]
["2025-07-04",null,null,null,null,null,null,null,null,null,null,null,null,null,null,null,null,null,null,null,null,null,null,null,null,0]
["2025-07-05",null,null,null,null,null,null,null,null,null,null,null,null,null,null,null,null,null,null,null,null,null,null,null,null,0]
["2025-07-06",null,null,null,null,null,null,null,null,null,null,null,null,null,null,null,null,null,null,null,null,null,null,null,null,0]
["2025-07-07",null,null,null,null,null,null,null,null,null,null,null,null,null,null,null,null,null,null,null,null,null,null,null,null,0]
["2025-07-08",null,null,null,null,null,null,null,null,null,null,null,null,null,null,null,null,null,null,null,null,null,null,null,null,0]
["2025-07-09",null,null,null,null,null,null,null,null,null,null,null,null,null,null,null,null,null,null,null,null,null,null,null,null,0]
["2025-07-10",null,null,null,null,null,null,null,null,null,null,null,null,null,null,null,null,null,null,null,null,null,null,null,null,0]
["2025-07-11",null,null,null,null,null,null,null,null,null,null,null,null,null,null,null,null,null,null,null,null,null,null,null,null,0]
["2025-07-12",null,null,null,null,null,null,null,null,null,null,null,null,null,null,null,null,null,null,null,null,null,null,null,null,0]
["2025-07-13",null,null,null,null,null,null,null,null,null,null,null,null,null,null,null,null,null,null,null,null,null,null,null,null,{"$f":"COUNTA(B195:Y195)","v":0}]
["2025-07-14",null,null,null,null,null,null,null,null,null,null,null,null,null,null,null,null,null,null,null,null,null,null,null,null,0]
["2025-07-15",null,null,null,null,null,null,null,null,null,null,null,null,null,null,null,null,null,null,null,null,null,null,null,null,0]
["2025-07-16",null,null,null,null,null,null,null,null,null,null,null,null,null,null,null,null,null,null,null,null,null,null,null,null,0]
["2025-07-17",null,null,null,null,null,null,null,null,null,null,null,null,null,null,null,null,null,null,null,null,null,null,null,null,0]
["2025-07-18",null,null,null,null,null,null,null,null,null,null,null,null,null,null,null,null,null,null,null,null,null,null,null,null,0]
["2025-07-19",null,null,null,null,null,null,null,null,null,null,null,null,null,null,null,null,null,null,null,null,null,null,null,null,0]
["2025-07-20",null,null,null,null,null,null,null,null,null,null,null,null,null,null,null,null,null,null,null,null,null,null,null,null,0]
["2025-07-21",null,null,null,null,null,null,null,null,null,null,null,null,null,null,null,null,null,null,null,null,null,null,null,null,0]
["2025-07-22",null,null,null,null,null,null,null,null,null,null,null,null,null,null,null,null,null,null,null,null,null,null,null,null,0]
["2025-07-23",null,null,null,null,null,null,null,null,null,null,null,null,null,null,null,null,null,null,null,null,null,null,null,null,0]
["2025-07-24",null,null,null,null,null,null,null,null,null,null,null,null,null,null,null,null,null,null,null,null,null,null,null,null,0]
["2025-07-25",null,null,null,null,null,null,null,null,null,null,null,null,null,null,null,null,null,null,null,null,null,null,null,null,0]
["2025-07-26",null,null,null,null,null,null,null,null,null,null,null,null,null,null,null,null,null,null,null,null,null,null,null,null,0]
["2025-07-27",null,null,null,null,null,null,null,null,null,null,null,null,null,null,null,null,null,null,null,null,null,null,null,null,0]
["2025-07-28",null,null,null,null,null,null,null,null,null,null,null,null,null,null,null,null,null,null,null,null,null,null,null,null,0]
["2025-07-29",null,null,null,null,null,null,null,null,null,null,null,null,null,null,null,null,null,null,null,null,null,null,null,null,0]
["2025-07-30",null,null,null,null,null,null,null,null,null,null,null,null,null,null,null,null,null,null,null,null,null,null,null,null,0]
["2025-07-31",null,null,null,null,null,null,null,null,null,null,null,null,null,null,null,null,null,null,null,null,null,null,null,null,0]
["2025-08-01",null,null,null,null,null,null,null,null,null,null,null,null,null,null,null,null,null,null,null,null,null,null,null,null,0]
["2025-08-02",null,null,null,null,null,null,null,null,null,null,null,null,null,null,null,null,null,null,null,null,null,null,null,null,0]
["2025-08-03",null,null,null,null,null,null,null,null,null,null,null,null,null,null,null,null,null,null,null,null,null,null,null,null,0]
["2025-08-04",null,null,null,null,null,null,null,null,null,null,null,null,null,null,null,null,null,null,null,null,null,null,null,null,0]
["2025-08-05",null,null,null,null,null,null,null,null,null,null,null,null,null,null,null,null,null,null,null,null,null,null,null,null,0]
["2025-08-06",null,null,null,null,null,null,null,null,null,null,null,null,null,null,null,null,null,null,null,null,null,null,null,null,0]
["2025-08-07",null,null,null,null,null,null,null,null,null,null,null,null,null,null,null,null,null,null,null,null,null,null,null,null,0]
["2025-08-08",null,null,null,null,null,null,null,null,null,null,null,null,null,null,null,null,null,null,null,null,null,null,null,null,0]
["2025-08-09",null,null,null,null,null,null,null,null,null,null,null,null,null,null,null,null,null,null,null,null,null,null,null,null,0]
["2025-08-10",null,null,null,null,null,null,null,null,null,null,null,null,null,null,null,null,null,null,null,null,null,null,null,null,0]
["2025-08-11",null,null,null,null,null,null,null,null,null,null,null,null,null,null,null,null,null,null,null,null,null,null,null,null,0]
["2025-08-12",null,null,null,null,null,null,null,null,null,null,null,null,null,null,null,null,null,null,null,null,null,null,null,null,0]
["2025-08-13",null,null,null,null,null,null,null,null,null,null,null,null,null,null,null,null,null,null,null,null,null,null,null,null,0]
["2025-08-14",null,null,null,null,null,null,null,null,null,null,null,null,null,null,null,null,null,null,null,null,null,null,null,null,0]
["2025-08-15",null,null,null,null,null,null,null,null,null,null,null,null,null,null,null,null,null,null,null,null,null,null,null,null,0]
["2025-08-16",null,null,null,null,null,null,null,null,null,null,null,null,null,null,null,null,null,null,null,null,null,null,null,null,0]
["2025-08-17",null,null,null,null,null,null,null,null,null,null,null,null,null,null,null,null,null,null,null,null,null,null,null,null,0]
["2025-08-18",null,null,null,null,null,null,null,null,null,null,null,null,null,null,null,null,null,null,null,null,null,null,null,null,0]
["2025-08-19",null,null,null,null,null,null,null,null,null,null,null,null,null,null,null,null,null,null,null,null,null,null,null,null,0]
["2025-08-20",null,null,null,null,null,null,null,null,null,null,null,null,null,null,null,null,null,null,null,null,null,null,null,null,0]
["2025-08-21",null,null,null,null,null,null,null,null,null,null,null,null,null,null,null,null,null,null,null,null,null,null,null,null,0]
["2025-08-22",null,null,null,null,null,null,null,null,null,null,null,null,null,null,null,null,null,null,null,null,null,null,null,null,0]
["2025-08-23",null,null,null,null,null,null,null,null,null,null,null,null,null,null,null,null,null,null,null,null,null,null,null,null,0]
["2025-08-24",null,null,null,null,null,null,null,null,null,null,null,null,null,null,null,null,null,null,null,null,null,null,null,null,0]
["2025-08-25",null,null,null,null,null,null,null,null,null,null,null,null,null,null,null,null,null,null,null,null,null,null,null,null,0]
["2025-08-26",null,null,null,null,null,null,null,null,null,null,null,null,null,null,null,null,null,null,null,null,null,null,null,null,0]
["2025-08-27",null,null,null,null,null,null,null,null,null,null,null,null,null,null,null,null,null,null,null,null,null,null,null,null,0]
["2025-08-28",null,null,null,null,null,null,null,null,null,null,null,null,null,null,null,null,null,null,null,null,null,null,null,null,0]
["2025-08-29",null,null,null,null,null,null,null,null,null,null,null,null,null,null,null,null,null,null,null,null,null,null,null,null,0]
["2025-08-30",null,null,null,null,null,null,null,null,null,null,null,null,null,null,null,null,null,null,null,null,null,null,null,null,0]
["2025-08-31",null,null,null,null,null,null,null,null,null,null,null,null,null,null,null,null,null,null,null,null,null,null,null,null,0]
["2025-09-01",null,null,null,null,null,null,null,null,null,null,null,null,null,null,null,null,null,null,null,null,null,null,null,null,0]
["2025-09-02",null,null,null,null,null,null,null,null,null,null,null,null,null,null,null,null,null,null,null,null,null,null,null,null,0]
["2025-09-03",null,null,null,null,null,null,null,null,null,null,null,null,null,null,null,null,null,null,null,null,null,null,null,null,0]
["2025-09-04",null,null,null,null,null,null,null,null,null,null,null,null,null,null,null,null,null,null,null,null,null,null,null,null,0]
["2025-09-05",null,null,null,null,null,null,null,null,null,null,null,null,null,null,null,null,null,null,null,null,null,null,null,null,0]
["2025-09-06",null,null,null,null,null,null,null,null,null,null,null,null,null,null,null,null,null,null,null,null,null,null,null,null,0]
["2025-09-07",null,null,null,null,null,null,null,null,null,null,null,null,null,null,null,null,null,null,null,null,null,null,null,null,0]
["2025-09-08",null,null,null,null,null,null,null,null,null,null,null,null,null,null,null,null,null,null,null,null,null,null,null,null,0]
["2025-09-09",null,null,null,null,null,null,null,null,null,null,null,null,null,null,null,null,null,null,null,null,null,null,null,null,0]
["2025-09-10",null,null,null,null,null,null,null,null,null,null,null,null,null,null,null,null,null,null,null,null,null,null,null,null,0]
["2025-09-11",null,null,null,null,null,null,null,null,null,null,null,null,null,null,null,null,null,null,null,null,null,null,null,null,0]
["2025-09-12",null,null,null,null,null,null,null,null,null,null,null,null,null,null,null,null,null,null,null,null,null,null,null,null,0]
["2025-09-13",null,null,null,null,null,null,null,null,null,null,null,null,null,null,null,null,null,null,null,null,null,null,null,null,0]
["2025-09-14",null,null,null,null,null,null,null,null,null,null,null,null,null,null,null,null,null,null,null,null,null,null,null,null,0]
["2025-09-15",null,null,null,null,null,null,null,null,null,null,null,null,null,null,null,null,null,null,null,null,null,null,null,null,{"$f":"COUNTA(B259:Y259)","v":0}]
["2025-09-16",null,null,null,null,null,null,null,null,null,null,null,null,null,null,null,null,null,null,null,null,null,null,null,null,0]
["2025-09-17",null,null,null,null,null,null,null,null,null,null,null,null,null,null,null,null,null,null,null,null,null,null,null,null,0]
["2025-09-18",null,null,null,null,null,null,null,null,null,null,null,null,null,null,null,null,null,null,null,null,null,null,null,null,0]
["2025-09-19",null,null,null,null,null,null,null,null,null,null,null,null,null,null,null,null,null,null,null,null,null,null,null,null,0]
["2025-09-20",null,null,null,null,null,null,null,null,null,null,null,null,null,null,null,null,null,null,null,null,null,null,null,null,0]
["2025-09-21",null,null,null,null,null,null,null,null,null,null,null,null,null,null,null,null,null,null,null,null,null,null,null,null,0]
["2025-09-22",null,null,null,null,null,null,null,null,null,null,null,null,null,null,null,null,null,null,null,null,null,null,null,null,0]
["2025-09-23",null,null,null,null,null,null,null,null,null,null,null,null,null,null,null,null,null,null,null,null,null,null,null,null,0]
["2025-09-24",null,null,null,null,null,null,null,null,null,null,null,null,null,null,null,null,null,null,null,null,null,null,null,null,0]
["2025-09-25",null,null,null,null,null,null,null,null,null,null,null,null,null,null,null,null,null,null,null,null,null,null,null,null,0]
["2025-09-26",null,null,null,null,null,null,null,null,null,null,null,null,null,null,null,null,null,null,null,null,null,null,null,null,0]
["2025-09-27",null,null,null,null,null,null,null,null,null,null,null,null,null,null,null,null,null,null,null,null,null,null,null,null,0]
["2025-09-28",null,null,null,null,null,null,null,null,null,null,null,null,null,null,null,null,null,null,null,null,null,null,null,null,0]
["2025-09-29",null,null,null,null,null,null,null,null,null,null,null,null,null,null,null,null,null,null,null,null,null,null,null,null,0]
["2025-09-30",null,null,null,null,null,null,null,null,null,null,null,null,null,null,null,null,null,null,null,null,null,null,null,null,0]
["2025-10-01",null,null,null,null,null,null,null,null,null,null,null,null,null,null,null,null,null,null,null,null,null,null,null,null,0]
["2025-10-02",null,null,null,null,null,null,null,null,null,null,null,null,null,null,null,null,null,null,null,null,null,null,null,null,0]
["2025-10-03",null,null,null,null,null,null,null,null,null,null,null,null,null,null,null,null,null,null,null,null,null,null,null,null,0]
["2025-10-04",null,null,null,null,null,null,null,null,null,null,null,null,null,null,null,null,null,null,null,null,null,null,null,null,0]
["2025-10-05",null,null,null,null,null,null,null,null,null,null,null,null,null,null,null,null,null,null,null,null,null,null,null,null,0]
["2025-10-06",null,null,null,null,null,null,null,null,null,null,null,null,null,null,null,null,null,null,null,null,null,null,null,null,0]
["2025-10-07",null,null,null,null,null,null,null,null,null,null,null,null,null,null,null,null,null,null,null,null,null,null,null,null,0]
["2025-10-08",null,null,null,null,null,null,null,null,null,null,null,null,null,null,null,null,null,null,null,null,null,null,null,null,0]
["2025-10-09",null,null,null,null,null,null,null,null,null,null,null,null,null,null,null,null,null,null,null,null,null,null,null,null,0]
["2025-10-10",null,null,null,null,null,null,null,null,null,null,null,null,null,null,null,null,null,null,null,null,null,null,null,null,0]
["2025-10-11",null,null,null,null,null,null,null,null,null,null,null,null,null,null,null,null,null,null,null,null,null,null,null,null,0]
["2025-10-12",null,null,null,null,null,null,null,null,null,null,null,null,null,null,null,null,null,null,null,null,null,null,null,null,0]
["2025-10-13",null,null,null,null,null,null,null,null,null,null,null,null,null,null,null,null,null,null,null,null,null,null,null,null,0]
["2025-10-14",null,null,null,null,null,null,null,null,null,null,null,null,null,null,null,null,null,null,null,null,null,null,null,null,0]
["2025-10-15",null,null,null,null,null,null,null,null,null,null,null,null,null,null,null,null,null,null,null,null,null,null,null,null,0]
["2025-10-16",null,null,null,null,null,null,null,null,null,null,null,null,null,null,null,null,null,null,null,null,null,null,null,null,0]
["2025-10-17",null,null,null,null,null,null,null,null,null,null,null,null,null,null,null,null,null,null,null,null,null,null,null,null,0]
["2025-10-18",null,null,null,null,null,null,null,null,null,null,null,null,null,null,null,null,null,null,null,null,null,null,null,null,0]
["2025-10-19",null,null,null,null,null,null,null,null,null,null,null,null,null,null,null,null,null,null,null,null,null,null,null,null,0]
["2025-10-20",null,null,null,null,null,null,null,null,null,null,null,null,null,null,null,null,null,null,null,null,null,null,null,null,0]
["2025-10-21",null,null,null,null,null,null,null,null,null,null,null,null,null,null,null,null,null,null,null,null,null,null,null,null,0]
["2025-10-22",null,null,null,null,null,null,null,null,null,null,null,null,null,null,null,null,null,null,null,null,null,null,null,null,0]
["2025-10-23",null,null,null,null,null,null,null,null,null,null,null,null,null,null,null,null,null,null,null,null,null,null,null,null,0]
["2025-10-24",null,null,null,null,null,null,null,null,null,null,null,null,null,null,null,null,null,null,null,null,null,null,null,null,0]
["2025-10-25",null,null,null,null,null,null,null,null,null,null,null,null,null,null,null,null,null,null,null,null,null,null,null,null,0]
["2025-10-26",null,null,null,null,null,null,null,null,null,null,null,null,null,null,null,null,null,null,null,null,null,null,null,null,0]
["2025-10-27",null,null,null,null,null,null,null,null,null,null,null,null,null,null,null,null,null,null,null,null,null,null,null,null,0]
["2025-10-28",null,null,null,null,null,null,null,null,null,null,null,null,null,null,null,null,null,null,null,null,null,null,null,null,0]
["2025-10-29",null,null,null,null,null,null,null,null,null,null,null,null,null,null,null,null,null,null,null,null,null,null,null,null,0]
["2025-10-30",null,null,null,null,null,null,null,null,null,null,null,null,null,null,null,null,null,null,null,null,null,null,null,null,0]
["2025-10-31",null,null,null,null,null,null,null,null,null,null,null,null,null,null,null,null,null,null,null,null,null,null,null,null,0]
["2025-11-01",null,null,null,null,null,null,null,null,null,null,null,null,null,null,null,null,null,null,null,null,null,null,null,null,0]
["2025-11-02",null,null,null,null,null,null,null,null,null,null,null,null,null,null,null,null,null,null,null,null,null,null,null,null,0]
["2025-11-03",null,null,null,null,null,null,null,null,null,null,null,null,null,null,null,null,null,null,null,null,null,null,null,null,0]
["2025-11-04",null,null,null,null,null,null,null,null,null,null,null,null,null,null,null,null,null,null,null,null,null,null,null,null,0]
["2025-11-05",null,null,null,null,null,null,null,null,null,null,null,null,null,null,null,null,null,null,null,null,null,null,null,null,0]
["2025-11-06",null,null,null,null,null,null,null,null,null,null,null,null,null,null,null,null,null,null,null,null,null,null,null,null,0]
["2025-11-07",null,null,null,null,null,null,null,null,null,null,null,null,null,null,null,null,null,null,null,null,null,null,null,null,0]
["2025-11-08",null,null,null,null,null,null,null,null,null,null,null,null,null,null,null,null,null,null,null,null,null,null,null,null,0]
["2025-11-09",null,null,null,null,null,null,null,null,null,null,null,null,null,null,null,null,null,null,null,null,null,null,null,null,0]
["2025-11-10",null,null,null,null,null,null,null,null,null,null,null,null,null,null,null,null,null,null,null,null,null,null,null,null,0]
["2025-11-11",null,null,null,null,null,null,null,null,null,null,null,null,null,null,null,null,null,null,null,null,null,null,null,null,0]
["2025-11-12",null,null,null,null,null,null,null,null,null,null,null,null,null,null,null,null,null,null,null,null,null,null,null,null,0]
["2025-11-13",null,null,null,null,null,null,null,null,null,null,null,null,null,null,null,null,null,null,null,null,null,null,null,null,0]
["2025-11-14",null,null,null,null,null,null,null,null,null,null,null,null,null,null,null,null,null,null,null,null,null,null,null,null,0]
["2025-11-15",null,null,null,null,null,null,null,null,null,null,null,null,null,null,null,null,null,null,null,null,null,null,null,null,0]
["2025-11-16",null,null,null,null,null,null,null,null,null,null,null,null,null,null,null,null,null,null,null,null,null,null,null,null,0]
["2025-11-17",null,null,null,null,null,null,null,null,null,null,null,null,null,null,null,null,null,null,null,null,null,null,null,null,0]
["2025-11-18",null,null,null,null,null,null,null,null,null,null,null,null,null,null,null,null,null,null,null,null,null,null,null,null,{"$f":"COUNTA(B323:Y323)","v":0}]
["2025-11-19",null,null,null,null,null,null,null,null,null,null,null,null,null,null,null,null,null,null,null,null,null,null,null,null,0]
["2025-11-20",null,null,null,null,null,null,null,null,null,null,null,null,null,null,null,null,null,null,null,null,null,null,null,null,0]
["2025-11-21",null,null,null,null,null,null,null,null,null,null,null,null,null,null,null,null,null,null,null,null,null,null,null,null,0]
["2025-11-22",null,null,null,null,null,null,null,null,null,null,null,null,null,null,null,null,null,null,null,null,null,null,null,null,0]
["2025-11-23",null,null,null,null,null,null,null,null,null,null,null,null,null,null,null,null,null,null,null,null,null,null,null,null,0]
["2025-11-24",null,null,null,null,null,null,null,null,null,null,null,null,null,null,null,null,null,null,null,null,null,null,null,null,0]
["2025-11-25",null,null,null,null,null,null,null,null,null,null,null,null,null,null,null,null,null,null,null,null,null,null,null,null,0]
["2025-11-26",null,null,null,null,null,null,null,null,null,null,null,null,null,null,null,null,null,null,null,null,null,null,null,null,0]
["2025-11-27",null,null,null,null,null,null,null,null,null,null,null,null,null,null,null,null,null,null,null,null,null,null,null,null,0]
["2025-11-28",null,null,null,null,null,null,null,null,null,null,null,null,null,null,null,null,null,null,null,null,null,null,null,null,0]
["2025-11-29",null,null,null,null,null,null,null,null,null,null,null,null,null,null,null,null,null,null,null,null,null,null,null,null,0]
["2025-11-30",null,null,null,null,null,null,null,null,null,null,null,null,null,null,null,null,null,null,null,null,null,null,null,null,0]
["2025-12-01",null,null,null,null,null,null,null,null,null,null,null,null,null,null,null,null,null,null,null,null,null,null,null,null,0]
["2025-12-02",null,null,null,null,null,null,null,null,null,null,null,null,null,null,null,null,null,null,null,null,null,null,null,null,0]
["2025-12-03",null,null,null,null,null,null,null,null,null,null,null,null,null,null,null,null,null,null,null,null,null,null,null,null,0]
["2025-12-04",null,null,null,null,null,null,null,null,null,null,null,null,null,null,null,null,null,null,null,null,null,null,null,null,0]
["2025-12-05",null,null,null,null,null,null,null,null,null,null,null,null,null,null,null,null,null,null,null,null,null,null,null,null,0]
["2025-12-06",null,null,null,null,null,null,null,null,null,null,null,null,null,null,null,null,null,null,null,null,null,null,null,null,0]
["2025-12-07",null,null,null,null,null,null,null,null,null,null,null,null,null,null,null,null,null,null,null,null,null,null,null,null,0]
["2025-12-08",null,null,null,null,null,null,null,null,null,null,null,null,null,null,null,null,null,null,null,null,null,null,null,null,0]
["2025-12-09",null,null,null,null,null,null,null,null,null,null,null,null,null,null,null,null,null,null,null,null,null,null,null,null,0]
["2025-12-10",null,null,null,null,null,null,null,null,null,null,null,null,null,null,null,null,null,null,null,null,null,null,null,null,0]
["2025-12-11",null,null,null,null,null,null,null,null,null,null,null,null,null,null,null,null,null,null,null,null,null,null,null,null,0]
["2025-12-12",null,null,null,null,null,null,null,null,null,null,null,null,null,null,null,null,null,null,null,null,null,null,null,null,0]
["2025-12-13",null,null,null,null,null,null,null,null,null,null,null,null,null,null,null,null,null,null,null,null,null,null,null,null,0]
["2025-12-14",null,null,null,null,null,null,null,null,null,null,null,null,null,null,null,null,null,null,null,null,null,null,null,null,0]
["2025-12-15",null,null,null,null,null,null,null,null,null,null,null,null,null,null,null,null,null,null,null,null,null,null,null,null,0]
["2025-12-16",null,null,null,null,null,null,null,null,null,null,null,null,null,null,null,null,null,null,null,null,null,null,null,null,0]
["2025-12-17",null,null,null,null,null,null,null,null,null,null,null,null,null,null,null,null,null,null,null,null,null,null,null,null,0]
["2025-12-18",null,null,null,null,null,null,null,null,null,null,null,null,null,null,null,null,null,null,null,null,null,null,null,null,0]
["2025-12-19",null,null,null,null,null,null,null,null,null,null,null,null,null,null,null,null,null,null,null,null,null,null,null,null,0]
["2025-12-20",null,null,null,null,null,null,null,null,null,null,null,null,null,null,null,null,null,null,null,null,null,null,null,null,0]
["2025-12-21",null,null,null,null,null,null,null,null,null,null,null,null,null,null,null,null,null,null,null,null,null,null,null,null,0]
["2025-12-22",null,null,null,null,null,null,null,null,null,null,null,null,null,null,null,null,null,null,null,null,null,null,null,null,0]
["2025-12-23",null,null,null,null,null,null,null,null,null,null,null,null,null,null,null,null,null,null,null,null,null,null,null,null,0]
["2025-12-24",null,null,null,null,null,null,null,null,null,null,null,null,null,null,null,null,null,null,null,null,null,null,null,null,0]
["2025-12-25",null,null,null,null,null,null,null,null,null,null,null,null,null,null,null,null,null,null,null,null,null,null,null,null,0]
["2025-12-26",null,null,null,null,null,null,null,null,null,null,null,null,null,null,null,null,null,null,null,null,null,null,null,null,0]
["2025-12-27",null,null,null,null,null,null,null,null,null,null,null,null,null,null,null,null,null,null,null,null,null,null,null,null,0]
["2025-12-28",null,null,null,null,null,null,null,null,null,null,null,null,null,null,null,null,null,null,null,null,null,null,null,null,0]
["2025-12-29",null,null,null,null,null,null,null,null,null,null,null,null,null,null,null,null,null,null,null,null,null,null,null,null,0]
["2025-12-30",null,null,null,null,null,null,null,null,null,null,null,null,null,null,null,null,null,null,null,null,null,null,null,null,0]
["2025-12-31",null,null,null,null,null,null,null,null,null,null,null,null,null,null,null,null,null,null,null,null,null,null,null,null,0]

{"sheet":"Нормы раб.времени","index":3,"n_rows":34,"n_cols":7,"rows_kept":34,"cut":false,"hidden":false,"merged":[[3,1,3,3],[3,4,3,6]]}
["Нормы рабочего времени на 2025 год"]
[]
[]
[null,"Количество дней",null,null,"Рабочее время в часах при рабочей неделе"]
[null,"календарных","рабочих","выходных и праздничных","40-часовой","36-часовой","24-часовой"]
["Январь",31,17,14,136,122.4,81.599999999999994]
["Февраль",28,20,8,160,144,96]
["Март",31,21,10,167,150.19999999999999,99.8]
["1 квартал",{"$f":"SUM(B6:B8)","v":90},58,32,463,416.59999999999997,277.39999999999998]
["Апрель",30,22,8,175,157.4,104.6]
["Май",31,18,13,144,129.6,86.4]
["Июнь",30,19,11,151,135.80000000000001,90.2]
["2 квартал",{"$f":"SUM(B10:B12)","v":91},59,32,470,422.8,281.2]
["1 полугодие",{"$f":"B9+B13","v":181},117,64,933,839.4,558.59999999999991]
["Июль",31,23,8,184,165.6,110.4]
["Август",31,21,10,168,151.19999999999999,100.8]
["Сентябрь",30,22,8,176,158.4,105.6]
["3 квартал",{"$f":"SUM(B15:B17)","v":92},66,26,528,475.19999999999993,316.79999999999995]
["Октябрь",31,23,8,184,165.6,110.4]
["Ноябрь",30,19,11,151,135.80000000000001,90.2]
["Декабрь",31,22,9,176,158.4,105.6]
["4 квартал",{"$f":"SUM(B19:B21)","v":92},64,28,511,459.79999999999995,306.20000000000005]
["2 полугодие",{"$f":"B18+B22","v":184},130,54,1039,934.99999999999989,623]
["Весь год",{"$f":"B14+B23","v":365},247,118,1972,1774.3999999999999,1181.5999999999999]
[]
[]
[]
["Переносы выходных дней и праздников в 2025 году"]
["Откуда",null,"Куда"]
["2025-01-04",null,"2025-05-02"]
["2025-01-05",null,"2025-12-31"]
["2025-02-23",null,"2025-05-08"]
["2025-03-08",null,"2025-06-13"]
["2025-11-01",null,"2025-11-03"]

{"sheet":"Праздники","index":4,"n_rows":1103,"n_cols":2,"rows_kept":1103,"cut":false,"hidden":false,"merged":[]}
["2025-01-01","● НОВЫЙ ГОД!"]
["2025-01-01","● Всемирный день мира (молитва о мире) (29 лет)"]
["2025-01-01","● День Святого мученика Вонифатия"]
["2025-01-02","● Продолжение новогоднего праздника"]
["2025-01-02","● Первый полет к Луне (запуск станции «Луна-1») (66 лет)"]
["2025-01-02","● День Святого Иоанна Кронштадтского"]
["2025-01-04","● День Ньютона"]
["2025-01-05","● Международный день бойскаутов"]
["2025-01-05","● День начала контрнаступления против немецко-фашистских войск в битве под Москвой (84 года)"]
["2025-01-06","● Навечерие Рождества Христова"]
["2025-01-06","● Рождественский сочельник"]
["2025-01-06","● Окончание Рождественнского поста"]
["2025-01-06","● День города Кисловодск (222 года)"]
["2025-01-07","● РОЖДЕСТВО ХРИСТОВО"]
["2025-01-07","● Рождественские святки (продлятся по 17 января)"]
["2025-01-10","● День Святых 20000 мучеников"]
["2025-01-11","● День заповедников и национальных парков (28 лет)"]
["2025-01-11","● Всемирный день «Спасибо!»"]
["2025-01-12","● День работника прокуратуры (303 года)"]
["2025-01-12","● Декларация прав трудящихся (107 лет)"]
["2025-01-13","● День российской печати (33 года)"]
["2025-01-14","● СТАРЫЙ НОВЫЙ ГОД"]
["2025-01-14","● День создания трубопроводных войск России (73 года)"]
["2025-01-14","● Обрезание Господне"]
["2025-01-14","● День Святого Василия Великого"]
["2025-01-15","● День образования Следственного комитета РФ (14 лет)"]
["2025-01-16","● Всемирный день «Beatles» (24 года)"]
["2025-01-16","● День ледовара (заливщика льда)"]
["2025-01-17","● День детских изобретений"]
["2025-01-17","● Окончание рождественских святок"]
["2025-01-18","● Крещенский сочельник"]
["2025-01-18","● Навечерие Богоявления"]
["2025-01-19","● КРЕЩЕНИЕ ГОСПОДНЕ"]
["2025-01-19","● Святое Богоявление"]
["2025-01-19","● Великое освящение воды"]
["2025-01-19","● Всемирный день религии"]
["2025-01-20","● День Республики Крым"]
["2025-01-20","● День собора Предтечи и Крестителя Господня Иоанна"]
["2025-01-21","● День инженерных войск (26 лет)"]
["2025-01-21","● Национальный день объятий"]
["2025-01-22","● Кровавое воскресенье. Начало 1-й российской революции (120 лет)"]
["2025-01-23","● День ручного письма (день почерка)"]
["2025-01-23","● День Святого Григория"]
["2025-01-24","● Табель о рангах всех чинов воинских, статских и придворных (303 года)"]
["2025-01-24","● Международный день эскимо"]
["2025-01-25","● ТАТЬЯНИН ДЕНЬ (День российского студенчества)"]
["2025-01-25","● День Святой мученицы Татианы"]
["2025-01-25","● День штурмана ВМФ (28 лет)"]
["2025-01-26","● Международный день таможенника (42 года)"]
["2025-01-26","● Международный день «без Интернета» (25 лет)"]
["2025-01-27","● День снятия блокады Ленинграда (81 год)"]
["2025-01-27","● Международный день памяти жертв Холокоста"]
["2025-01-28","● Международный день защиты персональных данных (конфиденциальности) (18 лет)"]
["2025-01-28","● Катастрофа космического корабля «Челленджер» (39 лет)"]
["2025-01-29","● Международный день мобилизации против ядерной войны (40 лет)"]
["2025-01-29","● День изобретения автомобиля (139 лет)"]
["2025-01-29","● Поклонение честным веригам Cвятого апостола Петра"]
["2025-01-29","● Восточный Новый год зеленой змеи (дерево)"]
["2025-01-31","● Международный день ювелира"]
["2025-01-31","● День рождения русской водки (160 лет)"]
["2025-02-01","● День интронизации Св.Патриарха Московского и Всея Руси Кирилла (16 лет)"]
["2025-02-02","● Всемирный день водно-болотных угодий (28 лет)"]
["2025-02-02","● День разгрома фашистских войск в Сталинградской битве (82 года)"]
["2025-02-02","● Неделя о Закхее-мытаре"]
["2025-02-04","● Всемирный день борьбы против рака"]
["2025-02-04","● День Святого апостола Тимофея"]
["2025-02-05","● Устав о наследии престола (303 года)"]
["2025-02-06","● Международный день бармена (23 года)"]
["2025-02-07","● День российского бизнес-образования (8 лет)"]
["2025-02-07","● День иконы Божией Матери «Утоли моя печали»"]
["2025-02-08","● День российской науки"]
["2025-02-08","● День военного топографа (21 год)"]
["2025-02-08","● «Лыжня России» - всероссийская массовая лыжная гонка"]
["2025-02-09","● Международный день стоматолога"]
["2025-02-09","● День создания Гражданской авиации (102 года)"]
["2025-02-09","● Неделя о мытаре и фарисее"]
["2025-02-09","● День Аэрофлота (102 года)"]
["2025-02-10","● День дипломатического работника (дипломата) (22 года)"]
["2025-02-10","● День памяти А.С.Пушкина"]
["2025-02-10","● Седмица мытаря и фарисея (продлится по 16 февраля)"]
["2025-02-11","● Всемирный день больного (32 года)"]
["2025-02-11","● Международный день женщин и девочек в науке (9 лет)"]
["2025-02-12","● Международный день брачных агентств"]
["2025-02-13","● Всемирный день радио (13 лет)"]
["2025-02-13","● Бессребренники мученики Кир и Иоанн и с ними мученицы Афанасия и дочери ее: Феодотия, Феоктиста и Евдоксия"]
["2025-02-14","● ДЕНЬ СВЯТОГО ВАЛЕНТИНА (День всех влюбленных)"]
["2025-02-14","● Всемирный день компьютерщика"]
["2025-02-14","● Международный день дарения книг (13 лет)"]
["2025-02-15","● Сретение Господне"]
["2025-02-15","● День памяти о россиянах, исполнявших служебный долг за пределами Отечества"]
["2025-02-15","● Международный день детей, больных раком (24 года)"]
["2025-02-16","● День архива Минэнерго России"]
["2025-02-16","● Неделя о блудном сыне"]
["2025-02-16","● Окончание седмицы мытаря и фарисея"]
["2025-02-17","● Всемирный день проявления доброты (приветствий)"]
["2025-02-17","● День российских студенческих отрядов (9 лет)"]
["2025-02-18","● День транспортной полиции"]
["2025-02-18","● День продовольственной и вещевой службы ВС РФ"]
["2025-02-18","● Манифест о даровании свободы российскому дворянству (263 года)"]
["2025-02-19","● Всемирный день китов (день защиты морских млекопитающих) (39 лет)"]
["2025-02-19","● Манифест об освобождении крестьян от крепостной зависимости (164 года)"]
["2025-02-20","● Всемирный день социальной справедливости (16 лет)"]
["2025-02-20","● День Святого Парфения"]
["2025-02-21","● Международный день родного языка (25 лет)"]
["2025-02-21","● Всемирный день экскурсовода (35 лет)"]
["2025-02-22","● Международный день поддержки жертв преступлений (35 лет)"]
["2025-02-22","● Вселенская родительская (мясопустная) суббота"]
["2025-02-22","● День зимних видов спорта в России"]
["2025-02-23","● ДЕНЬ ЗАЩИТНИКА ОТЕЧЕСТВА"]
["2025-02-23","● День победы Кр.Армии над кайзеровскими войсками Германии (107 лет)"]
["2025-02-23","● Неделя о Страшном суде"]
["2025-02-24","● Начало масленичной недели"]
["2025-02-24","● Сырная сплошная седмица (продлится по 2 марта)"]
["2025-02-26","● Всемирный день неторопливости (18 лет)"]
["2025-02-27","● День Сил специальных операций (10 лет)"]
["2025-02-27","● Международный день белого медведя"]
["2025-02-27","● День Святого равноапостольного Кирилла (Словенского)"]
["2025-02-28","● День Виленской иконы Божией Матери"]
["2025-02-28","● День Калевалы"]
["2025-03-01","● Первый день весны"]
["2025-03-01","● День кошек в России (21 год)"]
["2025-03-01","● Всемирный день гражданской обороны"]
["2025-03-01","● День эксперта-криминалиста (106 лет)"]
["2025-03-01","● День хостинг-провайдера (14 лет)"]
["2025-03-01","● Международный день борьбы с наркоманией и наркобизнесом"]
["2025-03-01","● День рождения российской полиции (14 лет)"]
["2025-03-01","● День «Ноль дискриминации» (11 лет)"]
["2025-03-01","● Всемирный день комплимента"]
["2025-03-01","● День Забайкальского края (17 лет)"]
["2025-03-01","● Родительская суббота"]
["2025-03-02","● МАСЛЕНИЦА"]
["2025-03-02","● ПРОЩЕНОЕ ВОСКРЕСЕНЬЕ"]
["2025-03-02","● Международный день спички"]
["2025-03-02","● Окончание сырной седмицы"]
["2025-03-02","● Международный день детского телевидения и радиовещания"]
["2025-03-03","● НАЧАЛО ВЕЛИКОГО ПОСТА"]
["2025-03-03","● Всемирный день писателя"]
["2025-03-03","● Всемирный день дикой природы (11 лет)"]
["2025-03-03","● Международный день охраны здоровья уха и слуха"]
["2025-03-03","● День театрального кассира (16 лет)"]
["2025-03-05","● День Козельщанской иконы Божией Матери"]
["2025-03-06","● Международный день зубного врача"]
["2025-03-08","● МЕЖДУНАРОДНЫЙ ЖЕНСКИЙ ДЕНЬ"]
["2025-03-08","● День Святого Поликарпа Смирнского"]
["2025-03-09","● Международный день ди-джея (23 года)"]
["2025-03-09","● Торжество Православия"]
["2025-03-09","● День работников геодезии и картографии (106 лет)"]
["2025-03-09","● Международный день планетариев (35 лет)"]
["2025-03-10","● День работников архива"]
["2025-03-11","● День работников наркоконтроля (17 лет)"]
["2025-03-11","● День сотрудников частных охранных агентств в России (ЧОП) (33 года)"]
["2025-03-12","● День работников уголовно-исполнительной системы Минюста РФ"]
["2025-03-13","● Всемирный день почки (19 лет)"]
["2025-03-14","● Международный день числа «Пи»"]
["2025-03-14","● Международный день борьбы против плотин"]
["2025-03-14","● День православной книги (15 лет)"]
["2025-03-14","● Всемирный день сна"]
["2025-03-15","● Всемирный день защиты прав потребителя (42 года)"]
["2025-03-15","● Международный день защиты бельков (детенышей тюленя)"]
["2025-03-15","● День Чудотворной иконы Божией Матери Державная"]
["2025-03-15","● Вселенская родительская суббота 2-й недели Поста"]
["2025-03-16","● День работников экономической безопасности в МВД (ОБЭП) (24 года)"]
["2025-03-16","● Неделя 2-я Великого поста: свт. Григория Паламы, архиеп. Солунского"]
["2025-03-16","● День работников бытового обслуживания населения и жилищно-коммунального хозяйства (ЖКХ)"]
["2025-03-17","● День Святого Герасима"]
["2025-03-18","● День воссоединения Крыма с Россией (11 лет)"]
["2025-03-18","● День Парижской Коммуны"]
["2025-03-18","● Алексей Леонов впервые в мире вышел в открытый космос (60 лет)"]
["2025-03-18","● Всемирный день социальной работы"]
["2025-03-19","● День моряка-подводника в России (29 лет)"]
["2025-03-19","● Международный день клиента (15 лет)"]
["2025-03-20","● Международный день счастья (13 лет)"]
["2025-03-20","● Всемирный день астрологии"]
["2025-03-20","● Международный день франкофонии"]
["2025-03-20","● День весеннего равноденствия"]
["2025-03-20","● Всемирный день Земли"]
["2025-03-20","● Международный день без мяса (40 лет)"]
["2025-03-21","● Международный день борьбы за ликвидацию расовой дискриминации"]
["2025-03-21","● Всемирный день поэзии (26 лет)"]
["2025-03-21","● Международный день кукольника (22 года)"]
["2025-03-21","● Международный день человека с синдромом Дауна (14 лет)"]
["2025-03-21","● Международный день лесов (13 лет)"]
["2025-03-22","● Всемирный день воды"]
["2025-03-22","● Международный день таксиста"]
["2025-03-22","● День Балтийского моря (39 лет)"]
["2025-03-22","● Вселенская родительская суббота 3-й недели Поста"]
["2025-03-23","● Всемирный день метеоролога (гидрометеорологической службы)"]
["2025-03-23","● Неделя 3-я Великого поста: Крестопоклонная"]
["2025-03-24","● День штурманской службы ВВС России (25 лет)"]
["2025-03-24","● Всемирный день борьбы с туберкулезом"]
["2025-03-25","● День работника культуры (17 лет)"]
["2025-03-25","● Международный день памяти жертв трансантлантической работорговли (17 лет)"]
["2025-03-25","● Международный день солидарности с сотрудниками, содержащимися под стражей и пропавшими без вести"]
["2025-03-26","● Фиолетовый день (День больных эпилепсией) (17 лет)"]
["2025-03-27","● Международный день театра"]
["2025-03-27","● День войск национальной гвардии (Росгвардии)"]
["2025-03-28","● Основание Большого театра (249 лет)"]
["2025-03-28","● День мученика Никандра Египтянина"]
["2025-03-29","● День специалиста юридической службы (18 лет)"]
["2025-03-29","● Вселенская родительская суббота 4-й недели Поста"]
["2025-03-30","● День защиты Земли"]
["2025-03-30","● Неделя 4-я Великого поста: прп. Иоанна Лествичника"]
["2025-03-31","● Международный день резервного копирования (бэкапа)"]
["2025-04-01","● ДЕНЬ СМЕХА"]
["2025-04-01","● Международный день птиц"]
["2025-04-02","● Международный день детской книги"]
["2025-04-02","● День единения народов Беларуси и России (29 лет)"]
["2025-04-02","● Всемирный день распространения информации о проблеме аутизма (17 лет)"]
["2025-04-03","● День Водяного (Водопол)"]
["2025-04-03","● Всемирный день вечеринки"]
["2025-04-04","● День веб-мастера"]
["2025-04-05","● Указ о престолонаследии (228 лет)"]
["2025-04-05","● Международный день супа"]
["2025-04-06","● День работника следственных органов"]
["2025-04-06","● День рождения московского трамвая (126 лет)"]
["2025-04-06","● Всемирный день настольного тенниса (10 лет)"]
["2025-04-06","● Международный день спорта на благо развития и мира (11 лет)"]
["2025-04-06","● Неделя 5-я Великого поста: прп. Марии Египетской"]
["2025-04-06","● День геолога"]
["2025-04-07","● Всемирный день здоровья"]
["2025-04-07","● Благовещение Пресвятой Богородицы"]
["2025-04-07","● День памяти погибших подводников"]
["2025-04-07","● День рождения «Рунета» (31 год)"]
["2025-04-07","● Католическая Пасха"]
["2025-04-08","● День весеннего призыва (18 лет)"]
["2025-04-08","● День сотрудников военных комиссариатов (военкоматов) (18 лет)"]
["2025-04-08","● День российской анимации"]
["2025-04-08","● Международный день цыган"]
["2025-04-10","● Международный день движения сопротивления фашистам"]
["2025-04-10","● Преподобный Иларион Новый (Пеликитский)"]
["2025-04-10","● Международный день ТОП-менеджера (16 лет)"]
["2025-04-11","● День освобождения узников концлагерей"]
["2025-04-12","● День авиации и космонавтики (64 года)"]
["2025-04-12","● Лазарева суббота"]
["2025-04-13","● ВЕРБНОЕ ВОСКРЕСЕНЬЕ"]
["2025-04-13","● Вход Господень В Иерусалим"]
["2025-04-13","● Всемирный день рок-н-ролла"]
["2025-04-13","● День мецената и благотворителя в России (20 лет)"]
["2025-04-13","● День войск противовоздушной обороны (ПВО) (25 лет)"]
["2025-04-14","● Страстная седмица (продлится по 20 апреля)"]
["2025-04-14","● Великий понедельник"]
["2025-04-15","● День специалиста по радиоэлектронной борьбе (18 лет)"]
["2025-04-15","● Международный день культуры"]
["2025-04-15","● День экологических знаний (29 лет)"]
["2025-04-15","● Великий вторник"]
["2025-04-16","● Великая среда"]
["2025-04-17","● День ветеранов органов внутренних дел и внутренних войск МВД России (14 лет)"]
["2025-04-17","● Всемирный день гемофилии"]
["2025-04-17","● Великий (чистый) четверг (четверток). Воспоминание Тайной Вечери"]
["2025-04-18","● Всемирный день радиолюбителя"]
["2025-04-18","● Ледовое побоище (783 года)"]
["2025-04-18","● Международный день памятников и исторических мест (41 год)"]
["2025-04-18","● Великая пятница. Воспоминание Святых Страстей Иисуса Христа"]
["2025-04-19","● День подснежника"]
["2025-04-19","● День российской полиграфии (11 лет)"]
["2025-04-19","● День работника ломоперерабатывающей отрасли России"]
["2025-04-19","● День принятия Крыма, Тамани и Кубани в состав Российской империи (242 года)"]
["2025-04-19","● Великая суббота"]
["2025-04-19","● Международный день цирка (15 лет)"]
["2025-04-20","● ПАСХА (СВЕТЛОЕ ХРИСТОВО ВОСКРЕСЕНИЕ)"]
["2025-04-20","● Национальный день донора в России (18 лет)"]
["2025-04-20","● Преподобный Георгий (Митиленский)"]
["2025-04-21","● День местного самоуправления (12 лет)"]
["2025-04-21","● День главного бухгалтера (главбуха)"]
["2025-04-21","● Пасхальная (Светлая) седмица (продлится по 27 апреля)"]
["2025-04-22","● Всемирная акция «День Земли»"]
["2025-04-23","● Всемирный день книги и авторского права (29 лет)"]
["2025-04-23","● День английского языка (15 лет)"]
["2025-04-23","● Международный день секретаря (административных работников)"]
["2025-04-24","● Международный день солидарности молодежи"]
["2025-04-25","● День дочери"]
["2025-04-25","● Международный день ДНК"]
["2025-04-26","● Международный день интеллектуальной собственности (24 года)"]
["2025-04-26","● День нотариата (9 лет)"]
["2025-04-26","● День памяти погибших в радиационных авариях и катастрофах (39 лет)"]
["2025-04-27","● День образования спецчастей Внутренних войск МВД России (79 лет)"]
["2025-04-27","● День российского парламентаризма (12 лет)"]
["2025-04-27","● Антипасха (Красная горка)"]
["2025-04-27","● Неделя 2-я по Пасхе: апостола Фомы (Неверующего)"]
["2025-04-27","● Окончание Пасхальной (Светлой) седмицы"]
["2025-04-27","● Всемирный день породненных городов (62 года)"]
["2025-04-27","● Международный день ветеринарного врача (25 лет)"]
["2025-04-28","● Всемирный день охраны труда (36 лет)"]
["2025-04-28","● День химической безопасности в России"]
["2025-04-28","● День работников скорой медицинской помощи"]
["2025-04-29","● Международный день танца"]
["2025-04-29","● Радоница. День особого поминовения усопших"]
["2025-04-30","● День пожарной охраны (26 лет)"]
["2025-04-30","● Международный день джаза (13 лет)"]
["2025-04-30","● Международный день свечника (8 лет)"]
["2025-04-30","● Вальпургиева ночь"]
["2025-05-01","● ПРАЗДНИК ВЕСНЫ И ТРУДА"]
["2025-05-02","● День Блаженной Матроны Московской"]
["2025-05-02","● Явление иконы Пресвятой Богородицы «Живоносный Источник»"]
["2025-05-03","● Всемирный день свободы печати (34 года)"]
["2025-05-03","● Всемирный день Солнца (31 год)"]
["2025-05-03","● Международный день астрономии"]
["2025-05-04","● День города Шахты (220 лет)"]
["2025-05-04","● День святых жен-мироносиц"]
["2025-05-04","● Неделя 3-я по Пасхе: святых жен-мироносиц"]
["2025-05-05","● День водолаза (23 года)"]
["2025-05-05","● День шифровальщика"]
["2025-05-05","● Международный день акушерки"]
["2025-05-05","● Международный день борьбы за права инвалидов (33 года)"]
["2025-05-06","● День Святого Георгия Победоносца"]
["2025-05-06","● Всемирный день борьбы с астмой (27 лет)"]
["2025-05-07","● День радио (День работников всех отраслей связи)"]
["2025-05-07","● День создания Вооруженных сил РФ (33 года)"]
["2025-05-07","● День связиста и специалиста радиотехнической службы (РТС) ВМФ России (29 лет)"]
["2025-05-08","● Дни памяти и примирения"]
["2025-05-08","● Всемирный день Красного Креста и Красного Полумесяца"]
["2025-05-08","● День оперативного работника УИС России"]
["2025-05-08","● День работников Федеральной службы по военно-техническому сотрудничеству России"]
["2025-05-09","● ДЕНЬ ПОБЕДЫ (80 лет)"]
["2025-05-09","● День поминовения усопших воинов"]
["2025-05-10","● Всемирный день борьбы с гипертонией (20 лет)"]
["2025-05-10","● Всемирный день справедливой торговли"]
["2025-05-11","● Неделя 4-я по Пасхе: о расслабленном"]
["2025-05-11","● Международный день матери"]
["2025-05-11","● День города Самара (439 лет)"]
["2025-05-12","● Всемирный день медицинских сестер"]
["2025-05-12","● День экологического образования (34 года)"]
["2025-05-13","● День Черноморского флота России"]
["2025-05-13","● День охранно-конвойной службы МВД России (День конвоира) (87 лет)"]
["2025-05-14","● День фрилансера в России"]
["2025-05-15","● День метрополитена (работников метро)"]
["2025-05-15","● Основание Московского метрополитена (90 лет)"]
["2025-05-15","● Международный день семьи (31 год)"]
["2025-05-15","● Международный день климата (33 года)"]
["2025-05-15","● Международный день отказника от военной службы по убеждениям совести"]
["2025-05-16","● Международный день биографов"]
["2025-05-17","● Международный день информационного сообщества (19 лет)"]
["2025-05-17","● День Ставропольского края"]
["2025-05-18","● Международный день музеев"]
["2025-05-18","● День Балтийского флота ВМФ России"]
["2025-05-18","● Неделя 5-я по Пасхе: о самарянке"]
["2025-05-18","● День памяти умерших от СПИДа (42 года)"]
["2025-05-19","● День рождения пионерской организации (103 года)"]
["2025-05-19","● День фармацевтического работника (4 года)"]
["2025-05-20","● Всемирный день метролога (24 года)"]
["2025-05-20","● День Волги (17 лет)"]
["2025-05-20","● Всемирный день травматолога"]
["2025-05-20","● Всемирный день пчел (день пчеловода) (7 лет)"]
["2025-05-21","● День военного переводчика (25 лет)"]
["2025-05-21","● День полярника (12 лет)"]
["2025-05-21","● День Тихоокеанского флота ВМФ России"]
["2025-05-21","● День инвентаризатора (День работника БТИ)"]
["2025-05-21","● Всемирный день культурного разнообразия во имя диалога и развития (22 года)"]
["2025-05-21","● День защиты от безработицы (33 года)"]
["2025-05-21","● День Иоанна Богослова"]
["2025-05-22","● Международный день биологического разнообразия (24 года)"]
["2025-05-22","● Всероссийский день бассейновой индустрии (8 лет)"]
["2025-05-22","● День Святого Николая"]
["2025-05-24","● День кадровика (20 лет)"]
["2025-05-24","● День славянской письменности и культуры (34 года)"]
["2025-05-24","● День Святых Кирилла и Мефодия"]
["2025-05-24","● День тезоименитства Св.Патриарха Московского и Всея Руси Кирилла"]
["2025-05-25","● Последний звонок"]
["2025-05-25","● День филолога"]
["2025-05-25","● Международный день пропавших детей"]
["2025-05-25","● День Нерпёнка (22 года)"]
["2025-05-25","● Всемирный день щитовидной железы (16 лет)"]
["2025-05-25","● День освобождения Африки"]
["2025-05-25","● Неделя 6-я по Пасхе: о слепом"]
["2025-05-25","● День химика"]
["2025-05-25","● День города Ангарск (77 лет)"]
["2025-05-25","● День города Дальнереченск (131 год)"]
["2025-05-25","● День города Дзержинск (95 лет)"]
["2025-05-25","● День города Наро-Фоминск (161 год)"]
["2025-05-25","● День города Хабаровск (167 лет)"]
["2025-05-25","● День города Рязань (930 лет)"]
["2025-05-25","● День города Иваново (464 года)"]
["2025-05-26","● День предпринимателя (российского предпринимательства) (17 лет)"]
["2025-05-26","● День снежного барса на Алтае (15 лет)"]
["2025-05-27","● Общероссийский день библиотек (библиотекаря) (30 лет)"]
["2025-05-27","● День города Санкт-Петербург (322 года)"]
["2025-05-28","● День пограничника"]
["2025-05-28","● День SEO-оптимизатора Рунета (19 лет)"]
["2025-05-28","● День брюнеток"]
["2025-05-28","● День специалиста негабаритных перевозок (негабаритчика)"]
["2025-05-28","● День святого благоверного Димитрия Углического"]
["2025-05-29","● День ветеранов таможенной службы (25 лет)"]
["2025-05-29","● Международный день миротворцев (22 года)"]
["2025-05-29","● День военного автомобилиста (25 лет)"]
["2025-05-29","● Вознесение Господне"]
["2025-05-30","● День сварщика"]
["2025-05-31","● Всемирный день блондинок (19 лет)"]
["2025-05-31","● День адвоката (российской адвокатуры) (19 лет)"]
["2025-05-31","● День без табака (37 лет)"]
["2025-05-31","● День города Стерлитамак (259 лет)"]
["2025-05-31","● День города Иваново (154 года)"]
["2025-05-31","● День города Новомосковск (95 лет)"]
["2025-05-31","● День города Чита (372 года)"]
["2025-05-31","● День города Ярославль (1015 лет)"]
["2025-06-01","● МЕЖДУНАРОДНЫЙ ДЕНЬ ЗАЩИТЫ ДЕТЕЙ"]
["2025-06-01","● Всемирный день родителей (12 лет)"]
["2025-06-01","● День Северного флота ВМФ России"]
["2025-06-01","● Всемирный день молока"]
["2025-06-01","● День Военно-транспортной авиации ВВС России (94 года)"]
["2025-06-01","● День создания правительственной связи России"]
["2025-06-01","● День благоверного Великого князя Димитрия Донского"]
["2025-06-01","● Неделя 7-я по Пасхе: свв.отцев I Вселенского Собора"]
["2025-06-01","● День мелиоратора (25 лет)"]
["2025-06-01","● День города Иркутск (364 года)"]
["2025-06-01","● День города Пенза (362 года)"]
["2025-06-01","● День города Тольятти (288 лет)"]
["2025-06-01","● День города Майкоп (168 лет)"]
["2025-06-01","● День города Симферополь (241 год)"]
["2025-06-02","● День здорового питания и отказа от излишеств в еде (14 лет)"]
["2025-06-03","● День царя Константина и матери его царицы Елены"]
["2025-06-03","● День Владимирской иконы Божией Матери"]
["2025-06-04","● Международный день невинных детей - жертв агрессии"]
["2025-06-04","● День крановщика (машиниста крана) (11 лет)"]
["2025-06-05","● День эколога (17 лет)"]
["2025-06-05","● Всемирный день охраны окружающей среды"]
["2025-06-05","● День создания Государственной службы карантина растений РФ"]
["2025-06-05","● Семик (седьмой четверг после Пасхи)"]
["2025-06-06","● Пушкинский день России"]
["2025-06-06","● День русского языка (15 лет)"]
["2025-06-07","● День города Томск (421 год)"]
["2025-06-07","● Троицкая родительская суббота"]
["2025-06-07","● Международный день очистки водоемов (22 года)"]
["2025-06-07","● День города Благовещенск (169 лет)"]
["2025-06-08","● ТРОИЦА (ДЕНЬ СВЯТОЙ ТРОИЦЫ)"]
["2025-06-08","● Пятидесятница"]
["2025-06-08","● День социального работника (24 года)"]
["2025-06-08","● Всемирный день океанов"]
["2025-06-08","● День преподобного Варлаама Хутынского"]
["2025-06-08","● Международный день домохозяйки и домохозяина"]
["2025-06-08","● Международный день натуриста (нудиста)"]
["2025-06-08","● День работников текстильной и легкой промышленности (24 года)"]
["2025-06-08","● День города Красноярск (397 лет)"]
["2025-06-09","● День Святого Духа"]
["2025-06-09","● Международный день друзей"]
["2025-06-09","● Международный день аккредитации (17 лет)"]
["2025-06-09","● Международный день архивов (17 лет)"]
["2025-06-09","● Троицкая седмица (продлится по 15 июня)"]
["2025-06-12","● ДЕНЬ РОССИИ (34 года)"]
["2025-06-12","● День города Великий Новгород (1166 лет)"]
["2025-06-12","● День города Димитровград (327 лет)"]
["2025-06-12","● День города Ижевск (265 лет)"]
["2025-06-12","● День города Кемерово (324 года)"]
["2025-06-12","● День города Киров (651 год)"]
["2025-06-12","● День города Комсомольск-на-Амуре (93 года)"]
["2025-06-12","● День города Нефтекамск (66 лет)"]
["2025-06-12","● День города Нижний Новгород (804 года)"]
["2025-06-12","● День города Пермь (302 года)"]
["2025-06-12","● День города Саранск (384 года)"]
["2025-06-12","● День города Сургут (431 год)"]
["2025-06-12","● День города Сыктывкар (245 лет)"]
["2025-06-12","● День города Тамбов (389 лет)"]
["2025-06-12","● День города Улан-Удэ (359 лет)"]
["2025-06-12","● День города Ульяновск (377 лет)"]
["2025-06-12","● День города Уфа (451 год)"]
["2025-06-12","● Всемирный день борьбы с детским трудом (28 лет)"]
["2025-06-13","● Пятница, 13!"]
["2025-06-14","● Всемирный день донора крови (20 лет)"]
["2025-06-14","● День работников миграционной службы (ФМС) (18 лет)"]
["2025-06-14","● Международный день блогера (21 год)"]
["2025-06-14","● День города Севастополь (242 года)"]
["2025-06-14","● День пивовара (22 года)"]
["2025-06-14","● День мебельщика"]
["2025-06-15","● Всемирный день ветра (16 лет)"]
["2025-06-15","● День всех святых"]
["2025-06-15","● Неделя 1-я по Пятидесятнице: всех святых"]
["2025-06-15","● Окончание Троицкой седмицы"]
["2025-06-15","● День медицинского работника (медработника)"]
["2025-06-15","● Международный день отца"]
["2025-06-15","● День города Бийск (316 лет)"]
["2025-06-16","● Международный день защиты детей Африки (34 года)"]
["2025-06-16","● Петров пост (продлится по 11 июля)"]
["2025-06-16","● Всемирный день мотоциклиста (17 лет)"]
["2025-06-17","● Всемирный день борьбы с опустыниванием и засухой"]
["2025-06-18","● Международный день устойчивой гастрономии (8 лет)"]
["2025-06-18","● День Святого князя Феодора Ярославича"]
["2025-06-19","● Международный день борьбы с сексуальным насилием в условиях конфликта (10 лет)"]
["2025-06-20","● Всемирный день беженцев (24 года)"]
["2025-06-20","● Всемирный день защиты слонов в зоопарках (16 лет)"]
["2025-06-20","● День специалиста минно-торпедной службы ВМФ России (29 лет)"]
["2025-06-21","● Международный день йоги (10 лет)"]
["2025-06-21","● Международный день скейтбординга (21 год)"]
["2025-06-21","● День кинологических подразделений МВД России (кинолога)"]
["2025-06-22","● День памяти и скорби"]
["2025-06-22","● Начало Великой Отечественной войны (84 года)"]
["2025-06-22","● Кириллов день"]
["2025-06-22","● Неделя 2-я по Пятидесятнице: всех святых, в земле Российской просиявших"]
["2025-06-22","● День города Архангельск (441 год)"]
["2025-06-23","● Международный Олимпийский день"]
["2025-06-23","● День балалайки (праздник музыкантов-народников) (17 лет)"]
["2025-06-23","● Международный день вдов (14 лет)"]
["2025-06-24","● Иван Купала (Иванов день). Праздник летнего солнцеворота"]
["2025-06-24","● День Республики Чувашия"]
["2025-06-25","● День моряка (мореплавателя) (15 лет)"]
["2025-06-25","● Выпускной бал"]
["2025-06-25","● День дружбы, единения славян"]
["2025-06-26","● Международный день борьбы с наркоманией и наркобизнесом"]
["2025-06-26","● Международный день в поддержку жертв пыток"]
["2025-06-27","● Вемирный день рыболовства"]
["2025-06-27","● День микро-, малых и средних предприятий (8 лет)"]
["2025-06-28","● День сотрудника службы охраны уголовно-исполнительной системы (УИС) Миниюста РФ (17 лет)"]
["2025-06-28","● День молодежи России"]
["2025-06-28","● День изобретателя и рационализатора"]
["2025-06-28","● День города Березники (93 года)"]
["2025-06-28","● День города Петрозаводск (322 года)"]
["2025-06-28","● День города Тверь (890 лет)"]
["2025-06-29","● Международный день промышленного дизайна (17 лет)"]
["2025-06-29","● День партизан и подпольщиков в России (15 лет)"]
["2025-06-29","● День преподобного Моисея Оптинского"]
["2025-06-29","● День кораблестроителя в РФ (8 лет)"]
["2025-06-29","● День города Вологда (878 лет)"]
["2025-06-29","● День города Новосибирск (132 года)"]
["2025-06-29","● День города Тобольск (438 лет)"]
["2025-06-30","● Международный день астероида (8 лет)"]
["2025-07-01","● День ветеранов боевых действий (16 лет)"]
["2025-07-01","● День вхождения Бурятии в состав Российского государства (364 года)"]
["2025-07-02","● Международный день спортивного журналиста (30 лет)"]
["2025-07-02","● Всемирный день НЛО (День уфолога)"]
["2025-07-02","● День города Владивосток (165 лет)"]
["2025-07-03","● День рождения ГИБДД/ГАИ (89 лет)"]
["2025-07-03","● День Республики Хакасия (32 года)"]
["2025-07-03","● День образования Республики Алтай (22 года)"]
["2025-07-04","● День преподобного Андрея Рублева"]
["2025-07-04","● Обретение мощей преподобного Максима Грека"]
["2025-07-05","● Международный день кооперации"]
["2025-07-05","● Международный день Днепра (22 года)"]
["2025-07-06","● Всемирный день поцелуя"]
["2025-07-06","● Празднование Владимирской иконы Божией Матери"]
["2025-07-06","● День работников морского и речного флота"]
["2025-07-06","● День города Новокузнецк (407 лет)"]
["2025-07-06","● День города Туапсе (187 лет)"]
["2025-07-07","● Рождество Святого Иоанна Предтечи - крестителя Господня"]
["2025-07-07","● Иван Купала (Иванов день, по новому стилю)"]
["2025-07-07","● Чесменская битва (победа над турецким флотом) (255 лет)"]
["2025-07-08","● Всероссийский день семьи, любви и верности (17 лет)"]
["2025-07-08","● День Петра и Февронии"]
["2025-07-08","● День любви"]
["2025-07-08","● Всемирный день борьбы с аллергией (20 лет)"]
["2025-07-09","● День Тихвинской иконы Божией Матери"]
["2025-07-10","● Полтавское сражение (316 лет)"]
["2025-07-10","● Обретение мощей преподобного Амвросия Оптинского"]
["2025-07-10","● День памяти преподобного Сампсона Странноприимца (Самсон-Сеногной, Самсонов день)"]
["2025-07-11","● Всемирный день народонаселения"]
["2025-07-11","● Всемирный день шоколада (30 лет)"]
["2025-07-11","● День светооператора (День художника по свету)"]
["2025-07-11","● Окончание Петрова поста"]
["2025-07-12","● Всемирный день бортпроводника гражданской авиации"]
["2025-07-12","● День Святых апостолов Петра и Павла"]
["2025-07-12","● День города Арзамас (447 лет)"]
["2025-07-12","● День города Калининград (770 лет)"]
["2025-07-13","● День российской почты (31 год)"]
["2025-07-13","● День рыбака (44 года)"]
["2025-07-13","● День действий против рыбной ловли (22 года)"]
["2025-07-17","● День рождения морской авиации ВМФ России (109 лет)"]
["2025-07-18","● День создания органов государственного пожарного надзора (18 лет)"]
["2025-07-18","● День обретения мощей Сергия Радонежского"]
["2025-07-19","● День юридической службы МВД РФ (22 года)"]
["2025-07-19","● День собора Радонежских святых"]
["2025-07-19","● День города Каменск-Уральский (324 года)"]
["2025-07-19","● День города Серпухов (686 лет)"]
["2025-07-20","● Международный день шахмат"]
["2025-07-20","● Международный день торта (14 лет)"]
["2025-07-20","● День металлурга"]
["2025-07-20","● День города Липецк (322 года)"]
["2025-07-20","● День города Первоуральск (293 года)"]
["2025-07-21","● День Казанской иконы Божией Матери (явление образа в Казани)"]
["2025-07-22","● Колочская и Кипрская чудотворные иконы Божией Матери"]
["2025-07-22","● День города Волжский (71 год)"]
["2025-07-23","● Всемирный день китов и дельфинов (39 лет)"]
["2025-07-23","● День дачника"]
["2025-07-23","● День Коневской иконы Божией Матери"]
["2025-07-23","● Положение честной ризы Иисуса Христа в Москве"]
["2025-07-23","● День города Псков (1122 года)"]
["2025-07-24","● День кадастрового инженера (17 лет)"]
["2025-07-24","● День Святой княгини Ольги"]
["2025-07-25","● День речной полиции в России"]
["2025-07-25","● День сотрудника органов следствия РФ (11 лет)"]
["2025-07-25","● День системного администратора (сисадмина) (25 лет)"]
["2025-07-26","● День парашютиста"]
["2025-07-26","● День эсперанто"]
["2025-07-26","● День собора Архангела Гавриила"]
["2025-07-26","● День работников торговли в России (12 лет)"]
["2025-07-27","● День преподобного Стефана Махрищского"]
["2025-07-27","● День города Обнинск (69 лет)"]
["2025-07-27","● День Военно-морского Флота (День ВМФ, День Нептуна)"]
["2025-07-27","● День города Северодвинск (89 лет)"]
["2025-07-27","● День города Тюмень (439 лет)"]
["2025-07-27","● День города Феодосия (2554 года)"]
["2025-07-28","● День Крещения Руси"]
["2025-07-28","● День великого князя Владимира, во святом крещении Василия"]
["2025-07-28","● День PR-специалиста (PR-менеджера) (21 год)"]
["2025-07-28","● Всемирный день борьбы с гепатитом"]
["2025-07-29","● Международный день тигра (15 лет)"]
["2025-07-30","● Международный день дружбы (14 лет)"]
["2025-07-30","● День памяти Святых отцев шести Вселенских Соборов"]
["2025-07-31","● Преподобный Иоанн Многострадальный"]
["2025-08-01","● Всероссийский день инкассатора"]
["2025-08-01","● День тыла Вооруженных сил РФ (27 лет)"]
["2025-08-01","● День образования Службы специальной связи России (86 лет)"]
["2025-08-01","● Начало Первой Мировой войны (111 лет)"]
["2025-08-01","● Обретение мощей преподобного Серафима Саровского"]
["2025-08-01","● Международный день пива (13 лет)"]
["2025-08-02","● День Воздушно-десантных войск (ВДВ) России"]
["2025-08-02","● Ильин день"]
["2025-08-02","● День города Муром (1163 года)"]
["2025-08-02","● День города Омск (309 лет)"]
["2025-08-03","● День Святого пророка Иезекииль"]
["2025-08-03","● День арбуза"]
["2025-08-03","● День железнодорожника"]
["2025-08-03","● День города Железногорск (75 лет)"]
["2025-08-04","● День Святой Марии Магдалины"]
["2025-08-05","● Международный день светофора"]
["2025-08-05","● Празднование в честь Почаевской иконы Божией Матери"]
["2025-08-05","● День курсанта"]
["2025-08-05","● День города Белгород (429 лет)"]
["2025-08-05","● День города Орел (459 лет)"]
["2025-08-06","● День Бориса и Глеба"]
["2025-08-06","● День железнодорожных войск (29 лет)"]
["2025-08-06","● Международный день «Врачи мира за мир» (45 лет)"]
["2025-08-06","● День Хиросимы (80 лет)"]
["2025-08-06","● День города Йошкар-Ола (441 год)"]
["2025-08-07","● День службы специальной связи и информации ФСО РФ (21 год)"]
["2025-08-07","● Успение праведной Анны, матери Богородицы"]
["2025-08-08","● Международный день альпинизма (День альпиниста)"]
["2025-08-08","● Всемирный день кошек (23 года)"]
["2025-08-09","● Всемирный день коренных народов мира (30 лет)"]
["2025-08-09","● Первая в истории победа русского флота (311 лет)"]
["2025-08-09","● День великомученика Пантелеимона"]
["2025-08-09","● День физкультурника (спортсмена) (86 лет)"]
["2025-08-09","● День города Ялта (187 лет)"]
["2025-08-10","● Празднование в честь Смоленской иконы Божией Матери"]
["2025-08-10","● День города Набережные Челны (399 лет)"]
["2025-08-10","● День строителя"]
["2025-08-10","● День города Курган (363 года)"]
["2025-08-10","● День города Нижний Тагил (303 года)"]
["2025-08-11","● Рождество святителя Николая Чудотворца (1767 лет)"]
["2025-08-12","● День Военно-воздушных сил (ВВС) России (27 лет)"]
["2025-08-12","● Международный день молодежи (25 лет)"]
["2025-08-13","● Всемирный день левшей (33 года)"]
["2025-08-14","● Медовый спас"]
["2025-08-14","● Начало Успенского поста"]
["2025-08-14","● Происхождение Честных Древ Животворящего Креста Господня"]
["2025-08-15","● День археолога"]
["2025-08-15","● День памяти Виктора Цоя (35 лет)"]
["2025-08-15","● День Республики Тыва (26 лет)"]
["2025-08-16","● День новгородского чудотворца Антония Римлянина"]
["2025-08-16","● Всемирный день бездомных животных (33 года)"]
["2025-08-16","● День города Екатеринбург (302 года)"]
["2025-08-17","● День Воздушного Флота России (32 года)"]
["2025-08-17","● День города Домодедово (78 лет)"]
["2025-08-17","● День города Ейск (177 лет)"]
["2025-08-17","● День города Екатеринбург (302 года)"]
["2025-08-17","● День города Чебоксары (556 лет)"]
["2025-08-19","● Преображение Господне"]
["2025-08-19","● Яблочный спас"]
["2025-08-19","● Всемирный день фотографии (16 лет)"]
["2025-08-19","● Всемирный день гуманитарной помощи (17 лет)"]
["2025-08-19","● День рождения русской тельняшки"]
["2025-08-20","● Всемирный день лени"]
["2025-08-21","● День подавления путча (34 года)"]
["2025-08-22","● День Государственного флага РФ (34 года)"]
["2025-08-22","● День Республики Коми (104 года)"]
["2025-08-23","● День разгрома фашистских войск в Курской битве (82 года)"]
["2025-08-23","● День города Абакан (94 года)"]
["2025-08-23","● День города Геленджик (194 года)"]
["2025-08-24","● День города Кострома (873 года)"]
["2025-08-24","● День города Барнаул (295 лет)"]
["2025-08-24","● День города Жуковский (78 лет)"]
["2025-08-25","● День мучеников Фотия и Аникиты и многих с ними"]
["2025-08-26","● Празднование в честь иконы Божией Матери «Умягчение злых сердец»"]
["2025-08-27","● День российского кино"]
["2025-08-27","● Окончание Успенского поста"]
["2025-08-28","● Успение Пресвятой Богородицы"]
["2025-08-29","● День подразделений специального назначения Вооруженных Сил России (спецназа)"]
["2025-08-29","● Международный день действий против ядерных испытаний (16 лет)"]
["2025-08-29","● Перенесение Нерукотворного Образа Иисуса Христа"]
["2025-08-29","● Празднование в честь иконы Божией Матери Феодоровской"]
["2025-08-30","● День образования Республики Татарстан"]
["2025-08-30","● Международный день жертв насильственных исчезновений (14 лет)"]
["2025-08-30","● День города Казань (1020 лет)"]
["2025-08-30","● День города Нижнекамск (59 лет)"]
["2025-08-30","● День города Калуга (654 года)"]
["2025-08-30","● День города Пушкино (100 лет)"]
["2025-08-30","● День города Щёлково (100 лет)"]
["2025-08-30","● День города Энгельс (278 лет)"]
["2025-08-31","● Православный день ветеринара (14 лет)"]
["2025-08-31","● День блога (20 лет)"]
["2025-08-31","● День шахтера"]
["2025-08-31","● День города Артём (87 лет)"]
["2025-08-31","● День города Есентуки (200 лет)"]
["2025-08-31","● День города Копейск (118 лет)"]
["2025-08-31","● День города Ногинск (244 года)"]
["2025-08-31","● День города Прокопьевск (94 года)"]
["2025-08-31","● День города Ростов Великий (1163 года)"]
["2025-08-31","● День города Новочебоксарск (65 лет)"]
["2025-09-01","● ДЕНЬ ЗНАНИЙ"]
["2025-09-01","● День профсоюзных действий за мир"]
["2025-09-01","● День Кабардино-Балкарской Республики"]
["2025-09-02","● День российской гвардии (24 года)"]
["2025-09-02","● День патрульно-постовой службы (ППС) (102 года)"]
["2025-09-02","● День окончания Второй мировой войны (международная дата празднования)"]
["2025-09-03","● День солидарности в борьбе с терроризмом (20 лет)"]
["2025-09-03","● День окончания Второй мировой войны (дата празднования в России)"]
["2025-09-04","● День специалиста по ядерному обеспечению (19 лет)"]
["2025-09-05","● Международный день благотворительности (12 лет)"]
["2025-09-05","● День Луппа Солунского"]
["2025-09-06","● День святителя Петра"]
["2025-09-06","● День города Керчь (2625 лет)"]
["2025-09-06","● День города Люберцы (402 года)"]
["2025-09-06","● День города Старый Оскол (432 года)"]
["2025-09-06","● День города Москва (878 лет)"]
["2025-09-07","● День работников нефтяной и газовой промышленности (нефтяника)"]
["2025-09-07","● День города Бердск (309 лет)"]
["2025-09-07","● День города Владимир (1035 лет)"]
["2025-09-07","● День города Елец (879 лет)"]
["2025-09-07","● День города Новый Уренгой (50 лет)"]
["2025-09-07","● День города Ноябрьск (50 лет)"]
["2025-09-07","● День города Одинцово (68 лет)"]
["2025-09-07","● День города Сызрань (342 года)"]
["2025-09-08","● Бородинское сражение (213 лет)"]
["2025-09-08","● День финансиста"]
["2025-09-08","● Международный день солидарности журналистов"]
["2025-09-08","● Международный день искоренения неграмотности"]
["2025-09-08","● День Новороссийской военно-морской базы (29 лет)"]
["2025-09-08","● Сретение Владимирской иконы Божией Матери"]
["2025-09-09","● Всемирный день красоты"]
["2025-09-09","● День тестировщика"]
["2025-09-09","● День дизайнера-графика в России (20 лет)"]
["2025-09-09","● День преподобного Пимена Великого"]
["2025-09-10","● Всемирный день предотвращения самоубийств"]
["2025-09-10","● Обретение мощей преподобного Иова Почаевского"]
["2025-09-11","● День специалиста органов воспитательной работы"]
["2025-09-11","● День граненого стакана (82 года)"]
["2025-09-11","● Православный день трезвости (112 лет)"]
["2025-09-11","● Победа русской эскадры над турками у мыса Тендра (235 лет)"]
["2025-09-11","● Усекновение главы Иоанна Предтечи"]
["2025-09-11","● Поминовение воинов"]
["2025-09-11","● День города Златоуст (271 год)"]
["2025-09-12","● Перенесение мощей Святого князя Александра Невского"]
["2025-09-12","● День города Новороссийск (187 лет)"]
["2025-09-12","● День города Челябинск (187 лет)"]
["2025-09-13","● День программиста"]
["2025-09-13","● День парикмахера в России"]
["2025-09-13","● Всемирный день оказания первой медицинской помощи (25 лет)"]
["2025-09-13","● День города Городец (873 года)"]
["2025-09-13","● День города Пятигорск (245 лет)"]
["2025-09-13","● День города Салехард (430 лет)"]
["2025-09-13","● День города Тула (879 лет)"]
["2025-09-13","● День города Химки (86 лет)"]
["2025-09-14","● Освященное время Церкви: церковное новолетие и миротворный круг"]
["2025-09-14","● День танкиста"]
["2025-09-14","● Международный день памяти жертв фашизма"]
["2025-09-14","● Всемирный день журавля (23 года)"]
["2025-09-14","● День озера Байкал"]
["2025-09-14","● День города Азов (958 лет)"]
["2025-09-14","● День города Волгоград (436 лет)"]
["2025-09-14","● День города Городец (873 года)"]
["2025-09-14","● День города Егорьевск (563 года)"]
["2025-09-14","● День города Елец (879 лет)"]
["2025-09-14","● День города Красногорск (93 года)"]
["2025-09-14","● День города Саратов (435 лет)"]
["2025-09-14","● День города Таганрог (327 лет)"]
["2025-09-14","● День города Челябинск (289 лет)"]
["2025-09-15","● День единства народов Дагестана (14 лет)"]
["2025-09-15","● Международный день демократии (18 лет)"]
["2025-09-16","● Международный день охраны озонового слоя (30 лет)"]
["2025-09-17","● День города Брянск (1040 лет)"]
["2025-09-17","● День HR-менеджера (управление персоналом) (22 года)"]
["2025-09-18","● День пророка Захарии и праведной Елисаветы"]
["2025-09-19","● День оружейника в России (13 лет)"]
["2025-09-19","● День рождения «Смайлика» (43 года)"]
["2025-09-19","● Воспоминание чуда Архистратига Михаила"]
["2025-09-19","● День секретаря в России"]
["2025-09-20","● День рекрутера (24 года)"]
["2025-09-20","● День преподобного Макария Оптинского"]
["2025-09-20","● День сока в России (12 лет)"]
["2025-09-20","● День города Воронеж (439 лет)"]
["2025-09-20","● День города Гатчина (229 лет)"]
["2025-09-20","● День города Элиста (160 лет)"]
["2025-09-21","● Рождество Пресвятой Богородицы"]
["2025-09-21","● Международный день мира"]
["2025-09-21","● День победы русских полков в Куликовской битве (645 лет)"]
["2025-09-21","● Всемирный день русского единения (15 лет)"]
["2025-09-21","● День работников леса (лесного хозяйства)"]
["2025-09-21","● День города Анапа (244 года)"]
["2025-09-21","● День города Армавир (186 лет)"]
["2025-09-21","● День города Астрахань (467 лет)"]
["2025-09-21","● День города Ростов-на-Дону (276 лет)"]
["2025-09-21","● День города Ставрополь (248 лет)"]
["2025-09-21","● День города Элиста (160 лет)"]
["2025-09-22","● Всемирный день без автомобиля (27 лет)"]
["2025-09-22","● Всемирный день защиты слонов"]
["2025-09-22","● Память праведных Богоотец Иоакима и Анны"]
["2025-09-22","● День осеннего равноденствия"]
["2025-09-24","● Международный день караванщика (30 лет)"]
["2025-09-24","● День преподобного Силуана Афонского"]
["2025-09-25","● Перенесение мощей праведного Симеона Верхотурского"]
["2025-09-26","● Всемирный День контрацепции (18 лет)"]
["2025-09-26","● Международный день борьбы за полную ликвидацию ядерного оружия (11 лет)"]
["2025-09-27","● День воспитателя и всех дошкольных работников (21 год)"]
["2025-09-27","● Международный день туризма"]
["2025-09-27","● Воздвижение Честного и Животворящего Креста Господня"]
["2025-09-27","● День города Краснодар (232 года)"]
["2025-09-28","● День работников атомной промышленности (20 лет)"]
["2025-09-28","● День генерального директора в России"]
["2025-09-28","● Всемирный день борьбы против бешенства (18 лет)"]
["2025-09-28","● День машиностроителя"]
["2025-09-28","● Международный день глухонемых"]
["2025-09-28","● День города Батайск (256 лет)"]
["2025-09-28","● День тигра на Дальнем Востоке (25 лет)"]
["2025-09-28","● День города Смоленск (1162 года)"]
["2025-09-28","● День города Курск (993 года)"]
["2025-09-29","● День отоларинголога"]
["2025-09-29","● Всемирный день сердца (26 лет)"]
["2025-09-29","● Всемирный день моря"]
["2025-09-30","● День Cвятых Веры, Надежды, Любови и матери их Софии"]
["2025-09-30","● Международный день переводчика (34 года)"]
["2025-09-30","● День Интернета в России (27 лет)"]
["2025-10-01","● МЕЖДУНАРОДНЫЙ ДЕНЬ ПОЖИЛЫХ ЛЮДЕЙ"]
["2025-10-01","● Международный день музыки"]
["2025-10-01","● Международный день улыбки"]
["2025-10-01","● День Сухопутных войск РФ (19 лет)"]
["2025-10-01","● Всемирный день вегетарианства"]
["2025-10-01","● День Cвященномученика Киприана и Cвятой мученицы Иустины"]
["2025-10-01","● Прославление преподобной Ефросинии Суздальской"]
["2025-10-01","● Международный день ДЦП (13 лет)"]
["2025-10-02","● День рождения электронной почты (54 года)"]
["2025-10-02","● Международный день ненасилия (18 лет)"]
["2025-10-02","● Международный день социального педагога (16 лет)"]
["2025-10-02","● День метростроителя (2 года)"]
["2025-10-02","● День памяти князей Феодора Смоленского и чад его Давида и Константина"]
["2025-10-03","● День ОМОН (23 года)"]
["2025-10-03","● Создание всемирной федерации профсоюзов"]
["2025-10-03","● Всемирный день животных"]
["2025-10-03","● Всемирный день улыбки (смайла) (26 лет)"]
["2025-10-04","● Запуск первого искусственного спутника Земли (68 лет)"]
["2025-10-04","● Всемирная неделя космоса (по 10 октября)"]
["2025-10-04","● День Военно-космических сил (космических войск)"]
["2025-10-04","● День войск Гражданской обороны МЧС России"]
["2025-10-04","● Всемирный день животных (25 лет)"]
["2025-10-04","● День города Мурманск (109 лет)"]
["2025-10-05","● Всемирный день учителей (31 год)"]
["2025-10-05","● День работников уголовного розыска"]
["2025-10-05","● День Республики Адыгея"]
["2025-10-05","● День города Грозный (207 лет)"]
["2025-10-05","● День города Подольск (244 года)"]
["2025-10-06","● Всемирный день охраны мест обитаний"]
["2025-10-06","● День российского страховщика (37 лет)"]
["2025-10-06","● Международный день врача"]
["2025-10-06","● Международный день жилья (18 лет)"]
["2025-10-06","● Всемирный день архитектуры (29 лет)"]
["2025-10-07","● День образования штабных подразделений МВД России (107 лет)"]
["2025-10-08","● День командира надводного, подводного и воздушного корабля ВМФ России (18 лет)"]
["2025-10-08","● Преставление преподобного Сергия (Радонежского)"]
["2025-10-09","● Всемирный день почты"]
["2025-10-09","● Международный день за снижение стихийных бедствий"]
["2025-10-09","● День разгрома немецко-фашистских войск в битве за Кавказ (82 года)"]
["2025-10-09","● День Cвятого Тихона"]
["2025-10-09","● Преставление Иоанна Богослова"]
["2025-10-09","● Всемирный день зрения (27 лет)"]
["2025-10-10","● Всемирный день психолога (день охраны психического здоровья) (33 года)"]
["2025-10-10","● Всемирный день яйца (27 лет)"]
["2025-10-11","● Международный день девочек (13 лет)"]
["2025-10-11","● День Республики Башкортостан"]
["2025-10-12","● День кадрового работника в России (20 лет)"]
["2025-10-12","● Всемирный день борьбы с артритом"]
["2025-10-12","● День испанского языка (15 лет)"]
["2025-10-12","● День работников сельского хозяйства и перерабатывающей промышленности (26 лет)"]
["2025-10-13","● Международный день уменьшения опасности бедствий"]
["2025-10-14","● День работников заповедного дела в России (26 лет)"]
["2025-10-14","● Покров Пресвятой Богородицы"]
["2025-10-14","● День преподобного Романа Сладкопевца"]
["2025-10-14","● Международный день стандартизации"]
["2025-10-14","● День города Невинномысск (200 лет)"]
["2025-10-15","● Международный день белой трости (День слепых)"]
["2025-10-15","● Всемирный день сельских женщин"]
["2025-10-15","● День создания адресно-справочной службы ФМС РФ"]
["2025-10-15","● Всемирный день мытья рук (17 лет)"]
["2025-10-16","● День Шефа (День Босса)"]
["2025-10-16","● Всемирный день анестезиолога"]
["2025-10-16","● Всемирный день продовольствия"]
["2025-10-16","● Всемирный день хлеба (19 лет)"]
["2025-10-17","● Международный день протеста против нищеты"]
["2025-10-18","● День памяти войсковой казачьей славы (25 лет)"]
["2025-10-19","● День Царскосельского лицея (день лицеиста) (214 лет)"]
["2025-10-19","● День работников пищевой промышленности"]
["2025-10-19","● День работников автомобильного транспорта и дорожного хозяйства"]
["2025-10-19","● День отца в России (4 года)"]
["2025-10-19","● День города Назрань (58 лет)"]
["2025-10-20","● Международный день авиадиспетчера"]
["2025-10-20","● Всемирный день статистики (15 лет)"]
["2025-10-20","● День моряков-надводников"]
["2025-10-20","● День военного связиста (19 лет)"]
["2025-10-20","● Международный день повара"]
["2025-10-20","● Всемирный день борьбы с остеопорозом (28 лет)"]
["2025-10-22","● День финансово-экономической службы Вооруженных Сил РФ (10 лет)"]
["2025-10-22","● Праздник Белых Журавлей"]
["2025-10-22","● Всемирный день заикания (23 года)"]
["2025-10-22","● День Корсунской иконы Божией Матери"]
["2025-10-23","● День работников рекламы (рекламиста) (31 год)"]
["2025-10-23","● Международный день без бумаги (15 лет)"]
["2025-10-24","● Международный день ООН"]
["2025-10-24","● День подразделений специального назначения (спецназа)"]
["2025-10-24","● Всемирный день информации о развитии"]
["2025-10-25","● День таможенника РФ"]
["2025-10-25","● День работника кабельной промышленности"]
["2025-10-25","● Международный день борьбы женщин за мир"]
["2025-10-25","● День Приморского края"]
["2025-10-25","● Всероссийский день гимнастики (26 лет)"]
["2025-10-26","● Принятие Декрета о мире (108 лет)"]
["2025-10-26","● День автомобилиста (водителя, шофера) (29 лет)"]
["2025-10-27","● Международный день школьных библиотек"]
["2025-10-28","● Международный день анимации (23 года)"]
["2025-10-28","● День бабушек и дедушек (день внуков, внучат)"]
["2025-10-28","● День армейской авиации РФ"]
["2025-10-29","● День рождения Комсомола (107 лет)"]
["2025-10-29","● День работников службы вневедомственной охраны МВД"]
["2025-10-29","● Всемирный день борьбы с инсультом"]
["2025-10-30","● День памяти жертв политических репрессий"]
["2025-10-30","● День инженера-механика (29 лет)"]
["2025-10-30","● День основания Российского Военно-морского флота (ВМФ) (329 лет)"]
["2025-10-30","● Международный день карих глаз"]
["2025-10-31","● Международный день экономии"]
["2025-10-31","● День сурдопереводчика (22 года)"]
["2025-10-31","● Международный день Черного моря"]
["2025-10-31","● День работников СИЗО и тюрем (19 лет)"]
["2025-10-31","● Всемирный день городов (11 лет)"]
["2025-10-31","● Хэллоуин (Hallowen)"]
["2025-11-01","● День судебного пристава (16 лет)"]
["2025-11-01","● Международный день вегана (31 год)"]
["2025-11-01","● Дмитриевская родительская суббота"]
["2025-11-01","● Всемирный день мужчин (25 лет)"]
["2025-11-02","● День международного признания Санкт-Петербурга"]
["2025-11-02","● Декларация прав народов России (108 лет)"]
["2025-11-04","● День народного единства"]
["2025-11-04","● День Казанской иконы Божией Матери"]
["2025-11-04","● День города Череповец (248 лет)"]
["2025-11-05","● День военного разведчика (25 лет)"]
["2025-11-06","● День иконы Божией Матери «Всех скорбящих Радость»"]
["2025-11-07","● День согласия и примирения"]
["2025-11-07","● День освобождения Москвы (ополчениями Минина и Пожарского) (413 лет)"]
["2025-11-07","● Великая Октябрьская Социалистическая Революция (108 лет)"]
["2025-11-07","● День проведения военного парада на Красной площади (84 года)"]
["2025-11-08","● Международный день КВН (24 года)"]
["2025-11-08","● День великомученика Димитрия Солунского"]
["2025-11-09","● Международный день против фашизма, расизма и антисемитизма"]
["2025-11-09","● День отрядов полиции специального назначения"]
["2025-11-09","● Международный день антиядерных акций"]
["2025-11-09","● День преподобного Нестора Летописца"]
["2025-11-10","● День сотрудника органов внутренних дел РФ (День полиции)"]
["2025-11-10","● Всемирный день молодежи (80 лет)"]
["2025-11-10","● Всемирный день науки (23 года)"]
["2025-11-10","● Международный день бухгалтерии"]
["2025-11-10","● День мученицы Параскевы"]
["2025-11-10","● День преподобного Иова"]
["2025-11-10","● Всемирный день сирот"]
["2025-11-10","● Начало всемирной недели качества"]
["2025-11-11","● День экономиста (9 лет)"]
["2025-11-11","● День работника восстановительного поезда"]
["2025-11-11","● Международный день энергосбережения (17 лет)"]
["2025-11-11","● День холостяка"]
["2025-11-11","● Всемирный день шопинга (16 лет)"]
["2025-11-12","● День работника Сбербанка РФ (27 лет)"]
["2025-11-12","● День специалиста по безопасности (20 лет)"]
["2025-11-12","● Синичкин день (помощь зимующим птицам)"]
["2025-11-12","● Всемирный день борьбы с пневмонией"]
["2025-11-12","● День апостола и евангелиста Марка"]
["2025-11-13","● Международный день слепых"]
["2025-11-13","● День войск радиационной, химической и биологической защиты"]
["2025-11-13","● Всемирный день доброты (27 лет)"]
["2025-11-13","● Всемирный день качества (36 лет)"]
["2025-11-13","● Всемирный день юзабилити (практичности) (20 лет)"]
["2025-11-14","● Всемирный день борьбы против диабета (34 года)"]
["2025-11-14","● День социолога (31 год)"]
["2025-11-14","● Международный день логопеда"]
["2025-11-14","● День дизайнера упаковки (23 года)"]
["2025-11-14","● День иконы Божией Матери Одигитрия (Шуйской)"]
["2025-11-15","● Всероссийский день призывника (33 года)"]
["2025-11-15","● День создания подразделений по борьбе с организованной преступностью (37 лет)"]
["2025-11-15","● Всемирный день вторичной переработки"]
["2025-11-16","● Международный день толерантности (терпимости) (30 лет)"]
["2025-11-16","● Всероссийский день проектировщика (20 лет)"]
["2025-11-16","● День ракетных войск и артиллерии"]
["2025-11-16","● Всемирный день памяти жертв дорожно-транспортных происшествий (20 лет)"]
["2025-11-16","● Окончание всемирной недели качества"]
["2025-11-17","● Международный день студентов (79 лет)"]
["2025-11-17","● День участкового (23 года)"]
["2025-11-17","● Международный день недоношенных детей (16 лет)"]
["2025-11-18","● День рождения Деда Мороза"]
["2025-11-19","● День артиллериста"]
["2025-11-19","● День преподавателя высшей школы (4 года)"]
["2025-11-19","● День работника стекольной промышленности"]
["2025-11-19","● Всемирный день туалета (23 года)"]
["2025-11-19","● Международный мужской день"]
["2025-11-19","● Всемирный день географических информационных систем (ГИС) (26 лет)"]
["2025-11-20","● Всемирный день ребенка"]
["2025-11-20","● День иконы Божией Матери «Взыграние Младенца»"]
["2025-11-20","● Международный день отказа от курения (48 лет)"]
["2025-11-20","● Международный день философии (23 года)"]
["2025-11-21","● Всемирный день приветствий"]
["2025-11-21","● Всемирный день телевидения (28 лет)"]
["2025-11-21","● День бухгалтера (29 лет)"]
["2025-11-21","● День работника налоговых органов РФ (34 года)"]
["2025-11-21","● День собора Архистратига Михаила и прочих Небесных Сил бесплотных"]
["2025-11-22","● День психолога в России (25 лет)"]
["2025-11-22","● День сыновей"]
["2025-11-22","● День иконы Божией Матери «Скоропослушница»"]
["2025-11-22","● День города Сочи (187 лет)"]
["2025-11-24","● День моржа (17 лет)"]
["2025-11-24","● День исповедника преподобного Феодора Студита"]
["2025-11-25","● Международный день борьбы против насилия в отношении женщин (26 лет)"]
["2025-11-26","● День Святого Иоанна Златоуста"]
["2025-11-26","● Всемирный день информации"]
["2025-11-27","● День морской пехоты (30 лет)"]
["2025-11-27","● День оценщика (29 лет)"]
["2025-11-27","● День черной кошки"]
["2025-11-27","● Заговенье на Рождественский пост"]
["2025-11-27","● День Святого Григория Паламы"]
["2025-11-28","● Начало Рождественского поста (продлится по 6 января)"]
["2025-11-28","● День преподобного Паисия Величковского"]
["2025-11-28","● Всемирный день скидок «Черная пятница»"]
["2025-11-29","● День Святого апостола и евангелиста Матфея"]
["2025-11-30","● Международный день защиты информации (37 лет)"]
["2025-11-30","● День памяти жертв химического оружия"]
["2025-11-30","● Всемирный день домашних животных (25 лет)"]
["2025-11-30","● День преподобного Никона Радонежского"]
["2025-11-30","● День матери в России"]
["2025-12-01","● Всероссийский день хоккея (18 лет)"]
["2025-12-01","● Всемирный день борьбы со СПИДом"]
["2025-12-01","● Победа русской эскадры над турками у мыса Синоп (172 года)"]
["2025-12-01","● День математика (1 год)"]
["2025-12-02","● День банковского работника (банкира) (35 лет)"]
["2025-12-02","● Международный день борьбы за отмену рабства"]
["2025-12-02","● День 2D дизайнера"]
["2025-12-03","● День юриста (17 лет)"]
["2025-12-03","● Международный день инвалидов"]
["2025-12-03","● День Неизвестного солдата (11 лет)"]
["2025-12-03","● Всемирный день компьютерной графики (3D дизайнера)"]
["2025-12-03","● Международный день борьбы с пестицидами"]
["2025-12-04","● Введение во Храм Пресвятой Богородицы"]
["2025-12-04","● День информатики (27 лет)"]
["2025-12-04","● Международный день объятий"]
["2025-12-04","● День заказов подарков и написания писем Деду Морозу"]
["2025-12-05","● Битва за Москву (84 года)"]
["2025-12-05","● День добровольца (волонтера) в России (8 лет)"]
["2025-12-05","● Международный день добровольцев во имя экономического и социального развития"]
["2025-12-06","● День Александра Невского"]
["2025-12-07","● Международный день гражданской авиации"]
["2025-12-07","● День Святой великомученицы Екатерины"]
["2025-12-07","● День сетевика (сетевого маркетинга) (18 лет)"]
["2025-12-07","● День Пермского края"]
["2025-12-08","● День образования российского казначейства (33 года)"]
["2025-12-08","● Международный день художника (18 лет)"]
["2025-12-09","● Международный день борьбы с коррупцией (22 года)"]
["2025-12-09","● День Героев Отечества (18 лет)"]
["2025-12-09","● День ведомственной охраны железнодорожного транспорта РФ"]
["2025-12-09","● Международный день памяти жертв преступления геноцида (10 лет)"]
["2025-12-10","● Всемирный день футбола"]
["2025-12-10","● День прав человека"]
["2025-12-10","● Международный день прав животных"]
["2025-12-10","● День создания службы связи МВД России (26 лет)"]
["2025-12-11","● Международный день танго"]
["2025-12-11","● Международный день гор (горных возвышенностей) (22 года)"]
["2025-12-11","● Закон «О выборах в Государственную думу» (120 лет)"]
["2025-12-11","● День священномученика Серафима"]
["2025-12-12","● День Конституции РФ (32 года)"]
["2025-12-13","● День Cвятого апостола Андрея Первозванного"]
["2025-12-15","● Международный день чая"]
["2025-12-15","● День памяти журналистов, погибших при исполнении"]
["2025-12-17","● День курьера"]
["2025-12-17","● День ракетных войск стратегического назначения (30 лет)"]
["2025-12-17","● День защиты прав «секс-работниц» от насилия и жестокости (24 года)"]
["2025-12-17","● День Святой Варвары"]
["2025-12-17","● День сотрудников Государственной фельдъегерской службы"]
["2025-12-18","● Международный день мигранта (25 лет)"]
["2025-12-18","● День подразделений собственной безопасности ОВД РФ (30 лет)"]
["2025-12-18","● День работников органов ЗАГС (108 лет)"]
["2025-12-18","● Указ об учреждении губерний (317 лет)"]
["2025-12-19","● День Святого Николая Чудотворца"]
["2025-12-19","● Международный день помощи бедным"]
["2025-12-19","● День снабженца"]
["2025-12-19","● День военной контрразведки РФ"]
["2025-12-20","● День работника органов государственной и национальной безопасности РФ (ФСБ) (30 лет)"]
["2025-12-20","● Международный день солидарности людей (19 лет)"]
["2025-12-20","● День преподобного Нила Столобенского"]
["2025-12-20","● Зачатие праведной Анною Пресвятой Богородицы"]
["2025-12-20","● День риэлтора"]
["2025-12-22","● День энергетика"]
["2025-12-22","● День образования Пенсионного фонда РФ (35 лет)"]
["2025-12-22","● День иконы Божией Матери «Нечаянная Радость»"]
["2025-12-23","● Международный день сноубординга (18 лет)"]
["2025-12-23","● День дальней авиации ВВС России (26 лет)"]
["2025-12-23","● День Святого епископа Иоасафа"]
["2025-12-24","● День взятия турецкой крепости Измаил (235 лет)"]
["2025-12-25","● Католическое Рождество"]
["2025-12-25","● День чудотворца Cвятого Спиридона Тримифунтского"]
["2025-12-25","● Окончательный распад Советского Союза (34 года)"]
["2025-12-26","● День войск противовоздушной обороны Сухопутных войск России (День войсковой ПВО)"]
["2025-12-27","● День спасателя РФ"]
["2025-12-28","● День невинных младенцев"]
["2025-12-28","● Международный день кино"]
["2025-12-29","● День Памяти Пророка Аггея"]
["2025-12-30","● День пророка Даниила и Святых отроков Анания, Азария и Мисаила"]
["2025-12-31","● С наступающим Новым Годом!"]